Workbook

Sheet Daten
B3: 243 | C3: 100753 | D3: 19010101 | E3: -96 | F3: 0 | G3: =E3/10 -> -9.6 | I3: =RIGHT(D3,2) & "." & MID(D3,5,2) & "." & LEFT(D3,4) -> 01.01.1901
B4: 243 | C4: 100753 | D4: 19010102 | E4: -129 | F4: 0 | G4: =E4/10 -> -12.9 | I4: =RIGHT(D4,2) & "." & MID(D4,5,2) & "." & LEFT(D4,4) -> 02.01.1901
B5: 243 | C5: 100753 | D5: 19010103 | E5: -195 | F5: 0 | G5: -19.5 | I5: 03.01.1901
B6: 243 | C6: 100753 | D6: 19010104 | E6: -208 | F6: 0 | G6: -20.8 | I6: 04.01.1901
B7: 243 | C7: 100753 | D7: 19010105 | E7: -212 | F7: 0 | G7: -21.2 | I7: 05.01.1901
B8: 243 | C8: 100753 | D8: 19010106 | E8: -138 | F8: 0 | G8: -13.8 | I8: 06.01.1901
B9: 243 | C9: 100753 | D9: 19010107 | E9: -116 | F9: 0 | G9: -11.6 | I9: 07.01.1901
B10: 243 | C10: 100753 | D10: 19010108 | E10: -68 | F10: 0 | G10: -6.8 | I10: 08.01.1901
B11: 243 | C11: 100753 | D11: 19010109 | E11: -39 | F11: 0 | G11: -3.9 | I11: 09.01.1901
B12: 243 | C12: 100753 | D12: 19010110 | E12: -77 | F12: 0 | G12: -7.7 | I12: 10.01.1901
B13: 243 | C13: 100753 | D13: 19010111 | E13: -80 | F13: 0 | G13: -8 | I13: 11.01.1901
B14: 243 | C14: 100753 | D14: 19010112 | E14: -98 | F14: 0 | G14: -9.8 | I14: 12.01.1901
B15: 243 | C15: 100753 | D15: 19010113 | E15: -74 | F15: 0 | G15: -7.4 | I15: 13.01.1901
B16: 243 | C16: 100753 | D16: 19010114 | E16: -45 | F16: 0 | G16: -4.5 | I16: 14.01.1901
B17: 243 | C17: 100753 | D17: 19010115 | E17: -51 | F17: 0 | G17: -5.1 | I17: 15.01.1901
B18: 243 | C18: 100753 | D18: 19010116 | E18: -48 | F18: 0 | G18: -4.8 | I18: 16.01.1901
B19: 243 | C19: 100753 | D19: 19010117 | E19: -27 | F19: 0 | G19: -2.7 | I19: 17.01.1901
B20: 243 | C20: 100753 | D20: 19010118 | E20: -37 | F20: 0 | G20: -3.7 | I20: 18.01.1901
B21: 243 | C21: 100753 | D21: 19010119 | E21: -28 | F21: 0 | G21: -2.8 | I21: 19.01.1901
B22: 243 | C22: 100753 | D22: 19010120 | E22: -73 | F22: 0 | G22: -7.3 | I22: 20.01.1901
B23: 243 | C23: 100753 | D23: 19010121 | E23: -84 | F23: 0 | G23: -8.4 | I23: 21.01.1901
B24: 243 | C24: 100753 | D24: 19010122 | E24: -11 | F24: 0 | G24: -1.1 | I24: 22.01.1901
B25: 243 | C25: 100753 | D25: 19010123 | E25: -4 | F25: 0 | G25: -0.4 | I25: 23.01.1901
B26: 243 | C26: 100753 | D26: 19010124 | E26: -1 | F26: 0 | G26: -0.1 | I26: 24.01.1901
B27: 243 | C27: 100753 | D27: 19010125 | E27: -61 | F27: 0 | G27: -6.1 | I27: 25.01.1901
B28: 243 | C28: 100753 | D28: 19010126 | E28: -114 | F28: 0 | G28: -11.4 | I28: 26.01.1901
B29: 243 | C29: 100753 | D29: 19010127 | E29: -66 | F29: 0 | G29: -6.6 | I29: 27.01.1901
B30: 243 | C30: 100753 | D30: 19010128 | E30: -111 | F30: 0 | G30: -11.1 | I30: 28.01.1901
B31: 243 | C31: 100753 | D31: 19010129 | E31: -153 | F31: 0 | G31: -15.3 | I31: 29.01.1901
B32: 243 | C32: 100753 | D32: 19010130 | E32: -180 | F32: 0 | G32: -18 | I32: 30.01.1901
B33: 243 | C33: 100753 | D33: 19010131 | E33: -159 | F33: 0 | G33: -15.9 | I33: 31.01.1901
B34: 243 | C34: 100753 | D34: 19010201 | E34: -112 | F34: 0 | G34: -11.2 | I34: 01.02.1901
B35: 243 | C35: 100753 | D35: 19010202 | E35: -151 | F35: 0 | G35: -15.1 | I35: 02.02.1901
B36: 243 | C36: 100753 | D36: 19010203 | E36: -126 | F36: 0 | G36: -12.6 | I36: 03.02.1901
B37: 243 | C37: 100753 | D37: 19010204 | E37: -110 | F37: 0 | G37: -11 | I37: 04.02.1901
B38: 243 | C38: 100753 | D38: 19010205 | E38: -112 | F38: 0 | G38: -11.2 | I38: 05.02.1901
B39: 243 | C39: 100753 | D39: 19010206 | E39: -144 | F39: 0 | G39: -14.4 | I39: 06.02.1901
B40: 243 | C40: 100753 | D40: 19010207 | E40: -157 | F40: 0 | G40: -15.7 | I40: 07.02.1901
B41: 243 | C41: 100753 | D41: 19010208 | E41: -148 | F41: 0 | G41: -14.8 | I41: 08.02.1901
B42: 243 | C42: 100753 | D42: 19010209 | E42: -136 | F42: 0 | G42: -13.6 | I42: 09.02.1901
B43: 243 | C43: 100753 | D43: 19010210 | E43: -148 | F43: 0 | G43: -14.8 | I43: 10.02.1901
B44: 243 | C44: 100753 | D44: 19010211 | E44: -157 | F44: 0 | G44: -15.7 | I44: 11.02.1901
B45: 243 | C45: 100753 | D45: 19010212 | E45: -210 | F45: 0 | G45: -21 | I45: 12.02.1901
B46: 243 | C46: 100753 | D46: 19010213 | E46: -207 | F46: 0 | G46: -20.7 | I46: 13.02.1901
B47: 243 | C47: 100753 | D47: 19010214 | E47: -246 | F47: 0 | G47: -24.6 | I47: 14.02.1901
B48: 243 | C48: 100753 | D48: 19010215 | E48: -252 | F48: 0 | G48: -25.2 | I48: 15.02.1901
B49: 243 | C49: 100753 | D49: 19010216 | E49: -196 | F49: 0 | G49: -19.6 | I49: 16.02.1901
B50: 243 | C50: 100753 | D50: 19010217 | E50: -168 | F50: 0 | G50: -16.8 | I50: 17.02.1901
B51: 243 | C51: 100753 | D51: 19010218 | E51: -194 | F51: 0 | G51: -19.4 | I51: 18.02.1901
B52: 243 | C52: 100753 | D52: 19010219 | E52: -222 | F52: 0 | G52: -22.2 | I52: 19.02.1901
B53: 243 | C53: 100753 | D53: 19010220 | E53: -206 | F53: 0 | G53: -20.6 | I53: 20.02.1901
B54: 243 | C54: 100753 | D54: 19010221 | E54: -159 | F54: 0 | G54: -15.9 | I54: 21.02.1901
B55: 243 | C55: 100753 | D55: 19010222 | E55: -133 | F55: 0 | G55: -13.3 | I55: 22.02.1901
B56: 243 | C56: 100753 | D56: 19010223 | E56: -139 | F56: 0 | G56: -13.9 | I56: 23.02.1901
B57: 243 | C57: 100753 | D57: 19010224 | E57: -129 | F57: 0 | G57: -12.9 | I57: 24.02.1901
B58: 243 | C58: 100753 | D58: 19010225 | E58: -107 | F58: 0 | G58: -10.7 | I58: 25.02.1901
B59: 243 | C59: 100753 | D59: 19010226 | E59: -59 | F59: 0 | G59: -5.9 | I59: 26.02.1901
B60: 243 | C60: 100753 | D60: 19010227 | E60: -81 | F60: 0 | G60: -8.1 | I60: 27.02.1901
B61: 243 | C61: 100753 | D61: 19010228 | E61: -76 | F61: 0 | G61: -7.6 | I61: 28.02.1901
B62: 243 | C62: 100753 | D62: 19010301 | E62: -66 | F62: 0 | G62: -6.6 | I62: 01.03.1901
B63: 243 | C63: 100753 | D63: 19010302 | E63: -73 | F63: 0 | G63: -7.3 | I63: 02.03.1901
B64: 243 | C64: 100753 | D64: 19010303 | E64: -83 | F64: 0 | G64: -8.3 | I64: 03.03.1901
B65: 243 | C65: 100753 | D65: 19010304 | E65: -115 | F65: 0 | G65: -11.5 | I65: 04.03.1901
B66: 243 | C66: 100753 | D66: 19010305 | E66: -72 | F66: 0 | G66: -7.2 | I66: 05.03.1901
B67: 243 | C67: 100753 | D67: 19010306 | E67: -91 | F67: 0 | G67: -9.1 | I67: 06.03.1901
B68: 243 | C68: 100753 | D68: 19010307 | E68: -133 | F68: 0 | G68: =E68/10 -> -13.3 | I68: =RIGHT(D68,2) & "." & MID(D68,5,2) & "." & LEFT(D68,4) -> 07.03.1901
B69: 243 | C69: 100753 | D69: 19010308 | E69: -123 | F69: 0 | G69: -12.3 | I69: 08.03.1901
B70: 243 | C70: 100753 | D70: 19010309 | E70: -81 | F70: 0 | G70: -8.1 | I70: 09.03.1901
B71: 243 | C71: 100753 | D71: 19010310 | E71: -59 | F71: 0 | G71: -5.9 | I71: 10.03.1901
B72: 243 | C72: 100753 | D72: 19010311 | E72: -82 | F72: 0 | G72: -8.2 | I72: 11.03.1901
B73: 243 | C73: 100753 | D73: 19010312 | E73: -111 | F73: 0 | G73: -11.1 | I73: 12.03.1901
B74: 243 | C74: 100753 | D74: 19010313 | E74: -95 | F74: 0 | G74: -9.5 | I74: 13.03.1901
B75: 243 | C75: 100753 | D75: 19010314 | E75: -77 | F75: 0 | G75: -7.7 | I75: 14.03.1901
B76: 243 | C76: 100753 | D76: 19010315 | E76: -61 | F76: 0 | G76: -6.1 | I76: 15.03.1901
B77: 243 | C77: 100753 | D77: 19010316 | E77: -64 | F77: 0 | G77: -6.4 | I77: 16.03.1901
B78: 243 | C78: 100753 | D78: 19010317 | E78: -47 | F78: 0 | G78: -4.7 | I78: 17.03.1901
B79: 243 | C79: 100753 | D79: 19010318 | E79: -47 | F79: 0 | G79: -4.7 | I79: 18.03.1901
B80: 243 | C80: 100753 | D80: 19010319 | E80: -39 | F80: 0 | G80: -3.9 | I80: 19.03.1901
B81: 243 | C81: 100753 | D81: 19010320 | E81: -35 | F81: 0 | G81: -3.5 | I81: 20.03.1901
B82: 243 | C82: 100753 | D82: 19010321 | E82: -115 | F82: 0 | G82: -11.5 | I82: 21.03.1901
B83: 243 | C83: 100753 | D83: 19010322 | E83: -162 | F83: 0 | G83: -16.2 | I83: 22.03.1901
B84: 243 | C84: 100753 | D84: 19010323 | E84: -180 | F84: 0 | G84: -18 | I84: 23.03.1901
B85: 243 | C85: 100753 | D85: 19010324 | E85: -165 | F85: 0 | G85: -16.5 | I85: 24.03.1901
B86: 243 | C86: 100753 | D86: 19010325 | E86: -110 | F86: 0 | G86: -11 | I86: 25.03.1901
B87: 243 | C87: 100753 | D87: 19010326 | E87: -137 | F87: 0 | G87: -13.7 | I87: 26.03.1901
B88: 243 | C88: 100753 | D88: 19010327 | E88: -185 | F88: 0 | G88: -18.5 | I88: 27.03.1901
B89: 243 | C89: 100753 | D89: 19010328 | E89: -185 | F89: 0 | G89: -18.5 | I89: 28.03.1901
B90: 243 | C90: 100753 | D90: 19010329 | E90: -181 | F90: 0 | G90: -18.1 | I90: 29.03.1901
B91: 243 | C91: 100753 | D91: 19010330 | E91: -104 | F91: 0 | G91: -10.4 | I91: 30.03.1901
B92: 243 | C92: 100753 | D92: 19010331 | E92: -41 | F92: 0 | G92: -4.1 | I92: 31.03.1901
B93: 243 | C93: 100753 | D93: 19010401 | E93: -34 | F93: 0 | G93: -3.4 | I93: 01.04.1901
B94: 243 | C94: 100753 | D94: 19010402 | E94: -32 | F94: 0 | G94: -3.2 | I94: 02.04.1901
B95: 243 | C95: 100753 | D95: 19010403 | E95: -11 | F95: 0 | G95: -1.1 | I95: 03.04.1901
B96: 243 | C96: 100753 | D96: 19010404 | E96: 3 | F96: 0 | G96: 0.3 | I96: 04.04.1901
B97: 243 | C97: 100753 | D97: 19010405 | E97: -15 | F97: 0 | G97: -1.5 | I97: 05.04.1901
B98: 243 | C98: 100753 | D98: 19010406 | E98: -16 | F98: 0 | G98: -1.6 | I98: 06.04.1901
B99: 243 | C99: 100753 | D99: 19010407 | E99: 2 | F99: 0 | G99: 0.2 | I99: 07.04.1901
B100: 243 | C100: 100753 | D100: 19010408 | E100: 8 | F100: 0 | G100: 0.8 | I100: 08.04.1901
B101: 243 | C101: 100753 | D101: 19010409 | E101: 9 | F101: 0 | G101: 0.9 | I101: 09.04.1901
B102: 243 | C102: 100753 | D102: 19010410 | E102: -55 | F102: 0 | G102: -5.5 | I102: 10.04.1901
B103: 243 | C103: 100753 | D103: 19010411 | E103: -55 | F103: 0 | G103: -5.5 | I103: 11.04.1901
B104: 243 | C104: 100753 | D104: 19010412 | E104: -66 | F104: 0 | G104: -6.6 | I104: 12.04.1901
B105: 243 | C105: 100753 | D105: 19010413 | E105: -108 | F105: 0 | G105: -10.8 | I105: 13.04.1901
B106: 243 | C106: 100753 | D106: 19010414 | E106: -60 | F106: 0 | G106: -6 | I106: 14.04.1901
B107: 243 | C107: 100753 | D107: 19010415 | E107: -49 | F107: 0 | G107: -4.9 | I107: 15.04.1901
B108: 243 | C108: 100753 | D108: 19010416 | E108: -101 | F108: 0 | G108: -10.1 | I108: 16.04.1901
B109: 243 | C109: 100753 | D109: 19010417 | E109: -109 | F109: 0 | G109: -10.9 | I109: 17.04.1901
B110: 243 | C110: 100753 | D110: 19010418 | E110: -113 | F110: 0 | G110: -11.3 | I110: 18.04.1901
B111: 243 | C111: 100753 | D111: 19010419 | E111: -67 | F111: 0 | G111: -6.7 | I111: 19.04.1901
B112: 243 | C112: 100753 | D112: 19010420 | E112: -21 | F112: 0 | G112: -2.1 | I112: 20.04.1901
B113: 243 | C113: 100753 | D113: 19010421 | E113: 5 | F113: 0 | G113: 0.5 | I113: 21.04.1901
B114: 243 | C114: 100753 | D114: 19010422 | E114: 8 | F114: 0 | G114: 0.8 | I114: 22.04.1901
B115: 243 | C115: 100753 | D115: 19010423 | E115: -8 | F115: 0 | G115: -0.8 | I115: 23.04.1901
B116: 243 | C116: 100753 | D116: 19010424 | E116: -7 | F116: 0 | G116: -0.7 | I116: 24.04.1901
B117: 243 | C117: 100753 | D117: 19010425 | E117: -15 | F117: 0 | G117: -1.5 | I117: 25.04.1901
B118: 243 | C118: 100753 | D118: 19010426 | E118: -30 | F118: 0 | G118: -3 | I118: 26.04.1901
B119: 243 | C119: 100753 | D119: 19010427 | E119: -20 | F119: 0 | G119: -2 | I119: 27.04.1901
B120: 243 | C120: 100753 | D120: 19010428 | E120: -39 | F120: 0 | G120: -3.9 | I120: 28.04.1901
B121: 243 | C121: 100753 | D121: 19010429 | E121: -42 | F121: 0 | G121: -4.2 | I121: 29.04.1901
B122: 243 | C122: 100753 | D122: 19010430 | E122: -77 | F122: 0 | G122: -7.7 | I122: 30.04.1901
B123: 243 | C123: 100753 | D123: 19010501 | E123: -63 | F123: 0 | G123: -6.3 | I123: 01.05.1901
B124: 243 | C124: 100753 | D124: 19010502 | E124: -29 | F124: 0 | G124: -2.9 | I124: 02.05.1901
B125: 243 | C125: 100753 | D125: 19010503 | E125: -33 | F125: 0 | G125: -3.3 | I125: 03.05.1901
B126: 243 | C126: 100753 | D126: 19010504 | E126: -37 | F126: 0 | G126: -3.7 | I126: 04.05.1901
B127: 243 | C127: 100753 | D127: 19010505 | E127: -15 | F127: 0 | G127: -1.5 | I127: 05.05.1901
B128: 243 | C128: 100753 | D128: 19010506 | E128: -17 | F128: 0 | G128: -1.7 | I128: 06.05.1901
B129: 243 | C129: 100753 | D129: 19010507 | E129: -46 | F129: 0 | G129: -4.6 | I129: 07.05.1901
B130: 243 | C130: 100753 | D130: 19010508 | E130: -72 | F130: 0 | G130: -7.2 | I130: 08.05.1901
B131: 243 | C131: 100753 | D131: 19010509 | E131: -59 | F131: 0 | G131: -5.9 | I131: 09.05.1901
B132: 243 | C132: 100753 | D132: 19010510 | E132: -43 | F132: 0 | G132: =E132/10 -> -4.3 | I132: =RIGHT(D132,2) & "." & MID(D132,5,2) & "." & LEFT(D132,4) -> 10.05.1901
B133: 243 | C133: 100753 | D133: 19010511 | E133: -43 | F133: 0 | G133: -4.3 | I133: 11.05.1901
B134: 243 | C134: 100753 | D134: 19010512 | E134: 2 | F134: 0 | G134: 0.2 | I134: 12.05.1901
B135: 243 | C135: 100753 | D135: 19010513 | E135: 15 | F135: 0 | G135: 1.5 | I135: 13.05.1901
B136: 243 | C136: 100753 | D136: 19010514 | E136: 2 | F136: 0 | G136: 0.2 | I136: 14.05.1901
B137: 243 | C137: 100753 | D137: 19010515 | E137: -7 | F137: 0 | G137: -0.7 | I137: 15.05.1901
B138: 243 | C138: 100753 | D138: 19010516 | E138: -25 | F138: 0 | G138: -2.5 | I138: 16.05.1901
B139: 243 | C139: 100753 | D139: 19010517 | E139: -40 | F139: 0 | G139: -4 | I139: 17.05.1901
B140: 243 | C140: 100753 | D140: 19010518 | E140: -9 | F140: 0 | G140: -0.9 | I140: 18.05.1901
B141: 243 | C141: 100753 | D141: 19010519 | E141: 3 | F141: 0 | G141: 0.3 | I141: 19.05.1901
B142: 243 | C142: 100753 | D142: 19010520 | E142: 3 | F142: 0 | G142: 0.3 | I142: 20.05.1901
B143: 243 | C143: 100753 | D143: 19010521 | E143: 23 | F143: 0 | G143: 2.3 | I143: 21.05.1901
B144: 243 | C144: 100753 | D144: 19010522 | E144: 25 | F144: 0 | G144: 2.5 | I144: 22.05.1901
B145: 243 | C145: 100753 | D145: 19010523 | E145: 1 | F145: 0 | G145: 0.1 | I145: 23.05.1901
B146: 243 | C146: 100753 | D146: 19010524 | E146: 20 | F146: 0 | G146: 2 | I146: 24.05.1901
B147: 243 | C147: 100753 | D147: 19010525 | E147: 29 | F147: 0 | G147: 2.9 | I147: 25.05.1901
B148: 243 | C148: 100753 | D148: 19010526 | E148: 25 | F148: 0 | G148: 2.5 | I148: 26.05.1901
B149: 243 | C149: 100753 | D149: 19010527 | E149: 35 | F149: 0 | G149: 3.5 | I149: 27.05.1901
B150: 243 | C150: 100753 | D150: 19010528 | E150: 51 | F150: 0 | G150: 5.1 | I150: 28.05.1901
B151: 243 | C151: 100753 | D151: 19010529 | E151: 54 | F151: 0 | G151: 5.4 | I151: 29.05.1901
B152: 243 | C152: 100753 | D152: 19010530 | E152: 60 | F152: 0 | G152: 6 | I152: 30.05.1901
B153: 243 | C153: 100753 | D153: 19010531 | E153: 80 | F153: 0 | G153: 8 | I153: 31.05.1901
B154: 243 | C154: 100753 | D154: 19010601 | E154: 105 | F154: 0 | G154: 10.5 | I154: 01.06.1901
B155: 243 | C155: 100753 | D155: 19010602 | E155: 91 | F155: 0 | G155: 9.1 | I155: 02.06.1901
B156: 243 | C156: 100753 | D156: 19010603 | E156: 61 | F156: 0 | G156: 6.1 | I156: 03.06.1901
B157: 243 | C157: 100753 | D157: 19010604 | E157: 37 | F157: 0 | G157: 3.7 | I157: 04.06.1901
B158: 243 | C158: 100753 | D158: 19010605 | E158: 44 | F158: 0 | G158: 4.4 | I158: 05.06.1901
B159: 243 | C159: 100753 | D159: 19010606 | E159: 50 | F159: 0 | G159: 5 | I159: 06.06.1901
B160: 243 | C160: 100753 | D160: 19010607 | E160: 51 | F160: 0 | G160: 5.1 | I160: 07.06.1901
B161: 243 | C161: 100753 | D161: 19010608 | E161: 71 | F161: 0 | G161: 7.1 | I161: 08.06.1901
B162: 243 | C162: 100753 | D162: 19010609 | E162: 47 | F162: 0 | G162: 4.7 | I162: 09.06.1901
B163: 243 | C163: 100753 | D163: 19010610 | E163: 37 | F163: 0 | G163: 3.7 | I163: 10.06.1901
B164: 243 | C164: 100753 | D164: 19010611 | E164: 32 | F164: 0 | G164: 3.2 | I164: 11.06.1901
B165: 243 | C165: 100753 | D165: 19010612 | E165: 33 | F165: 0 | G165: 3.3 | I165: 12.06.1901
B166: 243 | C166: 100753 | D166: 19010613 | E166: 15 | F166: 0 | G166: 1.5 | I166: 13.06.1901
B167: 243 | C167: 100753 | D167: 19010614 | E167: 25 | F167: 0 | G167: 2.5 | I167: 14.06.1901
B168: 243 | C168: 100753 | D168: 19010615 | E168: -7 | F168: 0 | G168: -0.7 | I168: 15.06.1901
B169: 243 | C169: 100753 | D169: 19010616 | E169: -47 | F169: 0 | G169: -4.7 | I169: 16.06.1901
B170: 243 | C170: 100753 | D170: 19010617 | E170: -38 | F170: 0 | G170: -3.8 | I170: 17.06.1901
B171: 243 | C171: 100753 | D171: 19010618 | E171: -53 | F171: 0 | G171: -5.3 | I171: 18.06.1901
B172: 243 | C172: 100753 | D172: 19010619 | E172: -47 | F172: 0 | G172: -4.7 | I172: 19.06.1901
B173: 243 | C173: 100753 | D173: 19010620 | E173: -1 | F173: 0 | G173: -0.1 | I173: 20.06.1901
B174: 243 | C174: 100753 | D174: 19010621 | E174: 19 | F174: 0 | G174: 1.9 | I174: 21.06.1901
B175: 243 | C175: 100753 | D175: 19010622 | E175: 64 | F175: 0 | G175: 6.4 | I175: 22.06.1901
B176: 243 | C176: 100753 | D176: 19010623 | E176: 75 | F176: 0 | G176: 7.5 | I176: 23.06.1901
B177: 243 | C177: 100753 | D177: 19010624 | E177: 51 | F177: 0 | G177: 5.1 | I177: 24.06.1901
B178: 243 | C178: 100753 | D178: 19010625 | E178: 30 | F178: 0 | G178: 3 | I178: 25.06.1901
B179: 243 | C179: 100753 | D179: 19010626 | E179: 41 | F179: 0 | G179: 4.1 | I179: 26.06.1901
B180: 243 | C180: 100753 | D180: 19010627 | E180: 55 | F180: 0 | G180: 5.5 | I180: 27.06.1901
B181: 243 | C181: 100753 | D181: 19010628 | E181: 77 | F181: 0 | G181: 7.7 | I181: 28.06.1901
B182: 243 | C182: 100753 | D182: 19010629 | E182: 74 | F182: 0 | G182: 7.4 | I182: 29.06.1901
B183: 243 | C183: 100753 | D183: 19010630 | E183: 103 | F183: 0 | G183: 10.3 | I183: 30.06.1901
B184: 243 | C184: 100753 | D184: 19010701 | E184: 35 | F184: 0 | G184: 3.5 | I184: 01.07.1901
B185: 243 | C185: 100753 | D185: 19010702 | E185: 31 | F185: 0 | G185: 3.1 | I185: 02.07.1901
B186: 243 | C186: 100753 | D186: 19010703 | E186: 15 | F186: 0 | G186: 1.5 | I186: 03.07.1901
B187: 243 | C187: 100753 | D187: 19010704 | E187: 11 | F187: 0 | G187: 1.1 | I187: 04.07.1901
B188: 243 | C188: 100753 | D188: 19010705 | E188: 26 | F188: 0 | G188: 2.6 | I188: 05.07.1901
B189: 243 | C189: 100753 | D189: 19010706 | E189: 19 | F189: 0 | G189: 1.9 | I189: 06.07.1901
B190: 243 | C190: 100753 | D190: 19010707 | E190: 39 | F190: 0 | G190: 3.9 | I190: 07.07.1901
B191: 243 | C191: 100753 | D191: 19010708 | E191: 57 | F191: 0 | G191: 5.7 | I191: 08.07.1901
B192: 243 | C192: 100753 | D192: 19010709 | E192: 70 | F192: 0 | G192: 7 | I192: 09.07.1901
B193: 243 | C193: 100753 | D193: 19010710 | E193: 58 | F193: 0 | G193: 5.8 | I193: 10.07.1901
B194: 243 | C194: 100753 | D194: 19010711 | E194: 38 | F194: 0 | G194: 3.8 | I194: 11.07.1901
B195: 243 | C195: 100753 | D195: 19010712 | E195: 56 | F195: 0 | G195: 5.6 | I195: 12.07.1901
B196: 243 | C196: 100753 | D196: 19010713 | E196: 77 | F196: 0 | G196: =E196/10 -> 7.7 | I196: =RIGHT(D196,2) & "." & MID(D196,5,2) & "." & LEFT(D196,4) -> 13.07.1901
B197: 243 | C197: 100753 | D197: 19010714 | E197: 67 | F197: 0 | G197: 6.7 | I197: 14.07.1901
B198: 243 | C198: 100753 | D198: 19010715 | E198: 60 | F198: 0 | G198: 6 | I198: 15.07.1901
B199: 243 | C199: 100753 | D199: 19010716 | E199: 50 | F199: 0 | G199: 5 | I199: 16.07.1901
B200: 243 | C200: 100753 | D200: 19010717 | E200: 77 | F200: 0 | G200: 7.7 | I200: 17.07.1901
B201: 243 | C201: 100753 | D201: 19010718 | E201: 77 | F201: 0 | G201: 7.7 | I201: 18.07.1901
B202: 243 | C202: 100753 | D202: 19010719 | E202: 80 | F202: 0 | G202: 8 | I202: 19.07.1901
... 4298 more rows

Sheet Diagram

Sheet Diagram 2

Sheet Monatlicher Durchschnitt
E1: Monatsdurchschnitt | H1: Jahreddurchschnitt | K1: Durchschn. Maximum | N1: Durchschn. Minimum
E2: 31.01.1901 | F2: -8.977419355 | H2: 31.12.1901 | I2: -2.934246575 | K2: 31.07.1901 | L2: 5.1 | N2: 28.02.1901 | O2: -15.30357143
E3: 28.02.1901 | F3: -15.30357143 | H3: 31.12.1902 | I3: -2.355342466 | K3: 31.07.1902 | L3: 5.212903226 | N3: 31.12.1901 | O3: -7.919354839
E4: 31.03.1901 | F4: -10.06129032 | H4: 31.12.1903 | I4: -2.434246575 | K4: 31.08.1903 | L4: 4.835483871 | N4: 31.12.1902 | O4: -7.896774194
E5: 30.04.1901 | F5: -3.716666667 | H5: 31.12.1904 | I5: -1.822404372 | K5: 31.08.1904 | L5: 5.512903226 | N5: 29.02.1904 | O5: -10.09310345
E6: 31.05.1901 | F6: -0.3548387097 | H6: 31.12.1905 | I6: -2.940547945 | K6: 31.07.1905 | L6: 7.506451613 | N6: 31.01.1905 | O6: -11.23870968
E7: 30.06.1901 | F7: 3.65 | H7: 31.12.1906 | I7: -2.74630137 | K7: 31.08.1906 | L7: 5.670967742 | N7: 28.02.1906 | O7: -11.31071429
E8: 31.07.1901 | F8: 5.1 | H8: 31.12.1907 | I8: -2.495342466 | K8: 31.08.1907 | L8: 5.548387097 | N8: 31.12.1906 | O8: -12.30967742
E9: 31.08.1901 | F9: 4.7 | H9: 31.12.1908 | I9: -2.266393443 | K9: 30.06.1908 | L9: 4.966666667 | N9: 29.02.1908 | O9: -10.35172414
E10: 30.09.1901 | F10: 3.37 | H10: 31.12.1909 | I10: -3.337808219 | K10: 31.08.1909 | L10: 4.651612903 | N10: 28.02.1909 | O10: -12.975
E11: 31.10.1901 | F11: -0.8290322581 | H11: 31.12.1910 | I11: -3.040821918 | K11: 31.08.1910 | L11: 3.941935484 | N11: 31.01.1910 | O11: -9.096774194
E12: 30.11.1901 | F12: -5.766666667 | H12: 31.12.1911 | I12: -1.520547945 | K12: 31.07.1911 | L12: 7.74516129 | N12: 28.02.1911 | O12: -9.325
E13: 31.12.1901 | F13: -7.919354839 | H13: 31.12.1912 | I13: -2.92704918 | K13: 31.07.1912 | L13: 4.961290323 | N13: 31.01.1912 | O13: -7.393548387
E14: 31.01.1902 | F14: -7.306451613 | H14: 31.12.1913 | I14: -2.231232877 | K14: 31.08.1913 | L14: 3.632258065 | N14: 28.02.1913 | O14: -8.478571429
E15: 28.02.1902 | F15: -7.867857143 | H15: 31.12.1914 | I15: -2.327945205 | K15: 31.08.1914 | L15: 5.706451613 | N15: 31.01.1914 | O15: -9.483870968
E16: 31.03.1902 | F16: -7.3 | H16: 31.12.1915 | I16: -3.029315068 | K16: 30.06.1915 | L16: 4.82 | N16: 31.01.1915 | O16: -11.71612903
E17: 30.04.1902 | F17: -1.856666667 | H17: 31.12.1916 | I17: -2.565300546 | K17: 31.08.1916 | L17: 4.148387097 | N17: 29.02.1916 | O17: -9.444827586
E18: 31.05.1902 | F18: -5.022580645 | H18: 31.12.1917 | I18: -2.984931507 | K18: 30.06.1917 | L18: 5.586666667 | N18: 31.01.1917 | O18: -11.77741935
E19: 30.06.1902 | F19: 1.62 | H19: 31.12.1918 | I19: -1.899178082 | K19: 31.07.1918 | L19: 4.812903226 | N19: 31.12.1917 | O19: -10.4483871
E20: 31.07.1902 | F20: 5.212903226 | H20: 31.12.1919 | I20: -3.395342466 | K20: 31.08.1919 | L20: 5.961290323 | N20: 31.01.1919 | O20: -9.532258065
E21: 31.08.1902 | F21: 4.264516129 | H21: 31.12.1920 | I21: -0.6584699454 | K21: 31.07.1920 | L21: 5.448387097 | N21: 30.11.1919 | O21: -8.156666667
E22: 30.09.1902 | F22: 3.036666667 | H22: 31.12.1921 | I22: -0.9621917808 | K22: 31.08.1921 | L22: 5.725806452 | N22: 28.02.1921 | O22: -8.121428571
E23: 31.10.1902 | F23: -2.022580645 | H23: 31.12.1922 | I23: -2.797260274 | K23: 31.08.1922 | L23: 5.603225806 | N23: 31.01.1922 | O23: -10.64193548
E24: 30.11.1902 | F24: -3.373333333 | H24: 31.12.1923 | I24: -2.431780822 | K24: 31.07.1923 | L24: 7.367741935 | N24: 31.01.1923 | O24: -10.33870968
E25: 31.12.1902 | F25: -7.896774194 | H25: 31.12.1924 | I25: -1.920491803 | K25: 31.07.1924 | L25: 5.187096774 | N25: 29.02.1924 | O25: -11.2137931
E26: 31.01.1903 | F26: -7.477419355 | H26: 31.12.1925 | I26: -2.559452055 | K26: 31.08.1925 | L26: 4.687096774 | N26: 31.03.1925 | O26: -10.53548387
E27: 28.02.1903 | F27: -5.842857143 | H27: 31.12.1926 | I27: -1.74630137 | K27: 31.08.1926 | L27: 5.603225806 | N27: 31.01.1926 | O27: -9.419354839
E28: 31.03.1903 | F28: -6.693548387 | H28: 31.12.1927 | I28: -1.702191781 | K28: 31.07.1927 | L28: 5.464516129 | N28: 31.01.1927 | O28: -9.161290323
E29: 30.04.1903 | F29: -8.583333333 | H29: 31.12.1928 | I29: -1.839071038 | K29: 31.07.1928 | L29: 8.461290323 | N29: 31.01.1928 | O29: -8.248387097
E30: 31.05.1903 | F30: -0.6516129032 | H30: 31.12.1929 | I30: -2.127671233 | K30: 31.07.1929 | L30: 6.474193548 | N30: 28.02.1929 | O30: -12.37857143
E31: 30.06.1903 | F31: 2.143333333 | H31: 31.12.1930 | I31: -1.5 | K31: 30.06.1930 | L31: 6.586666667 | N31: 31.12.1929 | O31: -7.625806452
E32: 31.07.1903 | F32: 3.541935484 | H32: 31.12.1931 | I32: -2.678630137 | K32: 30.06.1931 | L32: 5.896666667 | N32: 28.02.1931 | O32: -11.82857143
E33: 31.08.1903 | F33: 4.835483871 | H33: 31.12.1932 | I33: -1.572677596 | K33: 31.08.1932 | L33: 8.487096774 | N33: 29.02.1932 | O33: -11.32068966
E34: 30.09.1903 | F34: 3.186666667 | H34: 31.12.1933 | I34: -2.673150685 | K34: 31.08.1933 | L34: 6.516129032 | N34: 28.02.1933 | O34: -10.42142857
E35: 31.10.1903 | F35: -0.7225806452 | H35: 31.12.1934 | I35: -0.9635616438 | K35: 31.07.1934 | L35: 6.583870968 | N35: 31.12.1933 | O35: -9.038709677
E36: 30.11.1903 | F36: -5.68 | H36: 31.12.1935 | I36: -2.630136986 | K36: 31.07.1935 | L36: 5.980645161 | N36: 31.01.1935 | O36: -11.82580645
E37: 31.12.1903 | F37: -7.570967742 | H37: 31.12.1936 | I37: -2.083606557 | K37: 31.08.1936 | L37: 5.409677419 | N37: 31.12.1935 | O37: -9.248387097
E38: 31.01.1904 | F38: -7.832258065 | H38: 31.12.1937 | I38: -2.174520548 | K38: 31.07.1937 | L38: 5.470967742 | N38: 31.03.1937 | O38: -8.690322581
E39: 29.02.1904 | F39: -10.09310345 | H39: 31.12.1938 | I39: -1.865479452 | K39: 31.08.1938 | L39: 5.167741935 | N39: 31.12.1937 | O39: -10.59354839
E40: 31.03.1904 | F40: -6.825806452 | H40: 31.12.1939 | I40: -2.340547945 | K40: 31.08.1939 | L40: 5.832258065 | N40: 31.03.1939 | O40: -11.28709677
E41: 30.04.1904 | F41: -2.736666667 | H41: 31.12.1940 | I41: -2.993989071 | K41: 31.07.1940 | L41: 3.670967742 | N41: 31.01.1940 | O41: -10.20322581
E42: 31.05.1904 | F42: 0.7967741935 | H42: 31.12.1941 | I42: -2.918082192 | K42: 31.07.1941 | L42: 6.2 | N42: 31.12.1940 | O42: -11.32903226
E43: 30.06.1904 | F43: 4.196666667 | H43: 31.12.1942 | I43: -1.815342466 | K43: 30.09.1942 | L43: 5.333333333 | N43: 31.01.1942 | O43: -13.91290323
E44: 31.07.1904 | F44: 7.425806452 | H44: 31.12.1943 | I44: -0.9789041096 | K44: 31.08.1943 | L44: 6.990322581 | N44: 31.01.1943 | O44: -7.858064516
E45: 31.08.1904 | F45: 5.512903226 | H45: 31.12.1944 | I45: -2.720765027 | K45: 31.08.1944 | L45: 9.322580645 | N45: 29.02.1944 | O45: -12.07241379
E46: 30.09.1904 | F46: 0.4533333333 | H46: 31.12.1945 | I46: -1.542739726 | K46: 31.07.1945 | L46: 7.158064516 | N46: 31.01.1945 | O46: -13.76451613
E47: 31.10.1904 | F47: -1 | H47: 31.12.1946 | I47: -1.400821918 | K47: 31.07.1946 | L47: 6.74516129 | N47: 28.02.1946 | O47: -8.957142857
E48: 30.11.1904 | F48: -6.346666667 | H48: 31.12.1947 | I48: -0.8408219178 | K48: 31.07.1947 | L48: 7.777419355 | N48: 31.01.1947 | O48: -11.4
E49: 31.12.1904 | F49: -5.861290323 | H49: 31.12.1948 | I49: -0.8363387978 | K49: 31.08.1948 | L49: 5.467741935 | N49: 31.12.1947 | O49: -10.01290323
E50: 31.01.1905 | F50: -11.23870968 | H50: 31.12.1949 | I50: -0.964109589 | K50: 31.07.1949 | L50: 6.367741935 | N50: 31.03.1949 | O50: -9.190322581
E51: 28.02.1905 | F51: -10.18571429 | H51: 31.12.1950 | I51: -1.251780822 | K51: 31.07.1950 | L51: 8.183870968 | N51: 31.01.1950 | O51: -7.951612903
E52: 31.03.1905 | F52: -6.961290323 | H52: 31.12.1951 | I52: -1.364383562 | K52: 31.07.1951 | L52: 6.238709677 | N52: 31.12.1950 | O52: -9.980645161
E53: 30.04.1905 | F53: -5.08 | H53: 31.12.1952 | I53: -2.402185792 | K53: 31.07.1952 | L53: 8.735483871 | N53: 29.02.1952 | O53: -11.04827586
E54: 31.05.1905 | F54: -1.358064516 | H54: 31.12.1953 | I54: -0.8690410959 | K54: 31.07.1953 | L54: 6.293548387 | N54: 31.01.1953 | O54: -10.19677419
E55: 30.06.1905 | F55: 3.616666667 | H55: 31.12.1954 | I55: -2.51369863 | K55: 31.08.1954 | L55: 3.990322581 | N55: 31.01.1954 | O55: -11.97419355
E56: 31.07.1905 | F56: 7.506451613 | H56: 31.12.1955 | I56: -2.319178082 | K56: 31.07.1955 | L56: 5.409677419 | N56: 28.02.1955 | O56: -10.76428571
E57: 31.08.1905 | F57: 5.129032258 | H57: 31.12.1956 | I57: -3.24726776 | K57: 31.07.1956 | L57: 5.306451613 | N57: 29.02.1956 | O57: -17.18275862
E58: 30.09.1905 | F58: 3.37 | H58: 31.12.1957 | I58: -1.346027397 | K58: 31.07.1957 | L58: 5.4 | N58: 31.01.1957 | O58: -8.296774194
E59: 31.10.1905 | F59: -7.887096774 | H59: 31.12.1958 | I59: -1.524109589 | K59: 31.08.1958 | L59: 6.761290323 | N59: 31.03.1958 | O59: -10.51612903
E60: 30.11.1905 | F60: -7.153333333 | H60: 31.12.1959 | I60: -0.7246575342 | K60: 31.07.1959 | L60: 7.322580645 | N60: 31.01.1959 | O60: -9.674193548
E61: 31.12.1905 | F61: -5.535483871 | H61: 31.12.1960 | I61: -2.191530055 | K61: 30.06.1960 | L61: 4.873333333 | N61: 31.01.1960 | O61: -9.603225806
E62: 31.01.1906 | F62: -8.987096774 | H62: 31.12.1961 | I62: -0.8504109589 | K62: 30.09.1961 | L62: 7.48 | N62: 31.01.1961 | O62: -7.696774194
E63: 28.02.1906 | F63: -11.31071429 | H63: 31.12.1962 | I63: -2.823561644 | K63: 31.08.1962 | L63: 6.912903226 | N63: 31.03.1962 | O63: -10.76774194
E64: 31.03.1906 | F64: -8.712903226 | H64: 31.12.1963 | I64: -2.150410959 | K64: 31.07.1963 | L64: 6.729032258 | N64: 31.01.1963 | O64: -13.45806452
E65: 30.04.1906 | F65: -5.383333333 | H65: 31.12.1964 | I65: -1.157650273 | K65: 31.07.1964 | L65: 6.525806452 | N65: 31.12.1963 | O65: -6.670967742
E66: 31.05.1906 | F66: -0.05483870968 | H66: 31.12.1965 | I66: -2.923287671 | K66: 31.08.1965 | L66: 3.94516129 | N66: 28.02.1965 | O66: -13.66785714
E67: 30.06.1906 | F67: 1.886666667 | H67: 31.12.1966 | I67: -2.19369863 | K67: 31.08.1966 | L67: 3.983870968 | N67: 31.01.1966 | O67: -10.33225806
E68: 31.07.1906 | F68: 5.512903226 | H68: 31.12.1967 | I68: -1.73890411 | K68: 31.07.1967 | L68: 7.274193548 | N68: 31.01.1967 | O68: -9.306451613
E69: 31.08.1906 | F69: 5.670967742 | H69: 31.12.1968 | I69: -2.006010929 | K69: 31.07.1968 | L69: 4.487096774 | N69: 31.01.1968 | O69: -10.61935484
E70: 30.09.1906 | F70: 1.33 | H70: 31.12.1969 | I70: -2.168767123 | K70: 31.07.1969 | L70: 6.348387097 | N70: 28.02.1969 | O70: -12.725
E71: 31.10.1906 | F71: 1.806451613 | H71: 31.12.1970 | I71: -2.595342466 | K71: 31.08.1970 | L71: 5.422580645 | N71: 28.02.1970 | O71: -11.51428571
E72: 30.11.1906 | F72: -3.046666667 | H72: 31.12.1971 | I72: -1.516164384 | K72: 31.08.1971 | L72: 7.05483871 | N72: 31.03.1971 | O72: -11.27096774
E73: 31.12.1906 | F73: -12.30967742 | H73: 31.12.1972 | I73: -1.991256831 | K73: 31.07.1972 | L73: 4.706451613 | N73: 31.01.1972 | O73: -8.006451613
E74: 31.01.1907 | F74: -9.922580645 | H74: 31.12.1973 | I74: -2.327671233 | K74: 31.08.1973 | L74: 7.325806452 | N74: 28.02.1973 | O74: -10.89642857
E75: 28.02.1907 | F75: -11.26071429 | H75: 31.12.1974 | I75: -2.669315068 | K75: 31.08.1974 | L75: 6.725806452 | N75: 31.12.1973 | O75: -8.309677419
E76: 31.03.1907 | F76: -9.467741935 | H76: 31.12.1975 | I76: -1.272876712 | K76: 31.08.1975 | L76: 5.990322581 | N76: 31.03.1975 | O76: -8.119354839
E77: 30.04.1907 | F77: -6.606666667 | H77: 31.12.1976 | I77: -1.905191257 | K77: 31.07.1976 | L77: 5.919354839 | N77: 31.01.1976 | O77: -9.096774194
E78: 31.05.1907 | F78: 0.3483870968 | H78: 31.12.1977 | I78: -1.628219178 | K78: 31.07.1977 | L78: 4.709677419 | N78: 31.12.1976 | O78: -8.764516129
E79: 30.06.1907 | F79: 2.77 | H79: 31.12.1978 | I79: -2.294246575 | K79: 31.08.1978 | L79: 3.525806452 | N79: 28.02.1978 | O79: -8.721428571
E80: 31.07.1907 | F80: 2.616129032 | H80: 31.12.1979 | I80: -2.269589041 | K80: 30.09.1979 | L80: 4.203333333 | N80: 31.01.1979 | O80: -11.29677419
E81: 31.08.1907 | F81: 5.548387097 | H81: 31.12.1980 | I81: -2.58442623 | K81: 31.08.1980 | L81: 6.112903226 | N81: 31.01.1980 | O81: -8.748387097
E82: 30.09.1907 | F82: 4.643333333 | H82: 31.12.1981 | I82: -2.18630137 | K82: 31.08.1981 | L82: 5.570967742 | N82: 31.01.1981 | O82: -10.22258065
E83: 31.10.1907 | F83: 0.9161290323 | H83: 31.12.1982 | I83: -0.9452054795 | K83: 31.07.1982 | L83: 7.54516129 | N83: 31.12.1981 | O83: -9.887096774
E84: 30.11.1907 | F84: -3.256666667 | H84: 31.12.1983 | I84: -0.5279452055 | K84: 31.07.1983 | L84: 10.06774194 | N84: 28.02.1983 | O84: -9.778571429
E85: 31.12.1907 | F85: -6.877419355 | H85: 31.12.1984 | I85: -2.286612022 | K85: 31.08.1984 | L85: 5.180645161 | N85: 29.02.1984 | O85: -10.9862069
E86: 31.01.1908 | F86: -6.741935484 | H86: 31.12.1985 | I86: -1.799452055 | K86: 31.08.1985 | L86: 5.803225806 | N86: 31.01.1985 | O86: -12.6516129
E87: 29.02.1908 | F87: -10.35172414 | H87: 31.12.1986 | I87: -1.434794521 | K87: 31.08.1986 | L87: 5.435483871 | N87: 28.02.1986 | O87: -11.56428571
E88: 31.03.1908 | F88: -9.980645161 | H88: 31.12.1987 | I88: -1.505479452 | K88: 30.09.1987 | L88: 6.216666667 | N88: 31.03.1987 | O88: -10.82903226
E89: 30.04.1908 | F89: -7.186666667 | H89: 31.12.1988 | I89: -1.059836066 | K89: 31.08.1988 | L89: 6.74516129 | N89: 31.03.1988 | O89: -9.332258065
E90: 31.05.1908 | F90: 1.758064516 | H90: 31.12.1989 | I90: 0.1769863014 | K90: 31.07.1989 | L90: 6.038709677 | N90: 31.12.1988 | O90: -5.85483871
E91: 30.06.1908 | F91: 4.966666667 | H91: 31.12.1990 | I91: -0.6665753425 | K91: 31.08.1990 | L91: 6.880645161 | N91: 31.01.1990 | O91: -4.732258065
E92: 31.07.1908 | F92: 4.687096774 | H92: 31.12.1991 | I92: -1.034246575 | K92: 31.08.1991 | L92: 7.961290323 | N92: 28.02.1991 | O92: -9.592857143
E93: 31.08.1908 | F93: 3.283870968 | H93: 31.12.1992 | I93: -0.143989071 | K93: 31.08.1992 | L93: 9.061290323 | N93: 29.02.1992 | O93: -6.417241379
E94: 30.09.1908 | F94: 1.823333333 | H94: 31.12.1993 | I94: -1.043013699 | K94: 31.08.1993 | L94: 6.574193548 | N94: 31.03.1993 | O94: -7.277419355
E95: 31.10.1908 | F95: 2.325806452 | H95: 31.12.1994 | I95: -0.1238356164 | K95: 31.07.1994 | L95: 8.980645161 | N95: 28.02.1994 | O95: -7.828571429
E96: 30.11.1908 | F96: -4.53 | H96: 31.12.1995 | I96: -1.258356164 | K96: 31.07.1995 | L96: 8.841935484 | N96: 31.01.1995 | O96: -9.119354839
E97: 31.12.1908 | F97: -7.638709677 | H97: 31.12.1996 | I97: -1.442622951 | K97: 30.06.1996 | L97: 5.096666667 | N97: 29.02.1996 | O97: -9.986206897
E98: 31.01.1909 | F98: -9.025806452 | H98: 31.12.1997 | I98: -0.1046575342 | K98: 31.08.1997 | L98: 7.851612903 | N98: 30.04.1997 | O98: -5.466666667
E99: 28.02.1909 | F99: -12.975 | H99: 31.12.1998 | I99: -1.112328767 | K99: 31.08.1998 | L99: 7.083870968 | N99: 31.03.1998 | O99: -6.65483871
E100: 31.03.1909 | F100: -9.987096774 | H100: 31.12.1999 | I100: -1.034794521 | K100: 31.07.1999 | L100: 6.322580645 | N100: 28.02.1999 | O100: -9.967857143
E101: 30.04.1909 | F101: -3.096666667 | H101: 31.12.2000 | I101: -0.6103825137 | K101: 30.06.2000 | L101: 5.68 | N101: 31.01.2000 | O101: -7.877419355
E102: 31.05.1909 | F102: -0.8161290323 | H102: 31.12.2001 | I102: -1.205753425 | K102: 31.08.2001 | L102: 7.729032258 | N102: 28.02.2001 | O102: -7.328571429
E103: 30.06.1909 | F103: 1.1 | H103: 31.12.2002 | I103: -0.5504109589 | K103: 30.06.2002 | L103: 6.283333333 | N103: 31.12.2001 | O103: -9.135483871
E104: 31.07.1909 | F104: 2.393548387 | H104: 31.12.2003 | I104: -0.1939726027 | K104: 31.08.2003 | L104: 9.838709677 | N104: 28.02.2003 | O104: -9.3
E105: 31.08.1909 | F105: 4.651612903 | H105: 31.12.2004 | I105: -1.428961749 | K105: 31.08.2004 | L105: 6.419354839 | N105: 31.01.2004 | O105: -9.206451613
E106: 30.09.1909 | F106: 1.486666667 | H106: 31.12.2005 | I106: -1.599452055 | K106: 31.07.2005 | L106: 5.496774194 | N106: 28.02.2005 | O106: -12.25714286
E107: 31.10.1909 | F107: 0.07741935484 | H107: 31.12.2006 | I107: -0.2134246575 | K107: 31.07.2006 | L107: 9.874193548 | N107: 31.12.2005 | O107: -9.261290323
E108: 30.11.1909 | F108: -7.236666667 | H108: 31.12.2007 | I108: -0.4854794521 | K108: 31.08.2007 | L108: 5.596774194 | N108: 31.03.2007 | O108: -5.629032258
E109: 31.12.1909 | F109: -7.377419355 | H109: 31.12.2008 | I109: -0.8857923497 | K109: 31.08.2008 | L109: 6.377419355 | N109: 31.03.2008 | O109: -7.967741935
E110: 31.01.1910 | F110: -9.096774194 | H110: 31.12.2009 | I110: -0.9317808219 | K110: 31.08.2009 | L110: 8.496774194 | N110: 28.02.2009 | O110: -9.682142857
E111: 28.02.1910 | F111: -9.064285714 | H111: 31.12.2010 | I111: -2.079726027 | K111: 31.07.2010 | L111: 7.867741935 | N111: 31.01.2010 | O111: -9.629032258
E112: 31.03.1910 | F112: -7.522580645 | H112: 31.12.2011 | I112: 0.3506849315 | K112: 31.08.2011 | L112: 8.009677419 | N112: 31.12.2010 | O112: -9.803225806
E113: 30.04.1910 | F113: -5.373333333 | H113: 31.12.2012 | I113: -0.631147541 | K113: 31.08.2012 | L113: 8.393548387 | N113: 29.02.2012 | O113: -11.47586207
E114: 31.05.1910 | F114: -1.983870968 | H114: 31.12.2013 | I114: -1.020547945 | K114: 31.07.2013 | L114: 8.090322581 | N114: 28.02.2013 | O114: -11.67857143
E115: 30.06.1910 | F115: 3.176666667 | H115: 31.12.2014 | I115: -0.0597260274 | K115: 31.07.2014 | L115: 6.016129032 | N115: 28.02.2014 | O115: -6.2
E116: 31.07.1910 | F116: 2.683870968 | H116: 31.12.2015 | I116: 0.221369863 | K116: 31.07.2015 | L116: 9.458064516 | N116: 28.02.2015 | O116: -7.946428571
E117: 31.08.1910 | F117: 3.941935484 | K117: 31.08.2016 | L117: 7.235483871 | N117: 31.03.2016 | O117: -6.951612903
E118: 30.09.1910 | F118: 0.48 | K118: 31.08.2017 | L118: 8.364516129 | N118: 28.02.2017 | O118: -5.007142857
E119: 31.10.1910 | F119: 0.4806451613
E120: 30.11.1910 | F120: -8.286666667
E121: 31.12.1910 | F121: -6.438709677
E122: 31.01.1911 | F122: -8.135483871
E123: 28.02.1911 | F123: -9.325
E124: 31.03.1911 | F124: -7.716129032
E125: 30.04.1911 | F125: -5.69
E126: 31.05.1911 | F126: -0.3612903226
E127: 30.06.1911 | F127: 2.506666667
E128: 31.07.1911 | F128: 7.74516129
E129: 31.08.1911 | F129: 7.548387097
E130: 30.09.1911 | F130: 4.65
E131: 31.10.1911 | F131: -0.2419354839
E132: 30.11.1911 | F132: -3.643333333
E133: 31.12.1911 | F133: -6.212903226
E134: 31.01.1912 | F134: -7.393548387
E135: 29.02.1912 | F135: -5.824137931
E136: 31.03.1912 | F136: -6.193548387
E137: 30.04.1912 | F137: -6.296666667
E138: 31.05.1912 | F138: -0.006451612903
E139: 30.06.1912 | F139: 2.883333333
E140: 31.07.1912 | F140: 4.961290323
E141: 31.08.1912 | F141: 1.467741935
E142: 30.09.1912 | F142: -3.25
E143: 31.10.1912 | F143: -2.090322581
E144: 30.11.1912 | F144: -8.693333333
E145: 31.12.1912 | F145: -4.993548387
E146: 31.01.1913 | F146: -7.267741935
E147: 28.02.1913 | F147: -8.478571429
E148: 31.03.1913 | F148: -4.880645161
E149: 30.04.1913 | F149: -4.916666667
E150: 31.05.1913 | F150: -0.6903225806
E151: 30.06.1913 | F151: 2.22
E152: 31.07.1913 | F152: 1.274193548
E153: 31.08.1913 | F153: 3.632258065
E154: 30.09.1913 | F154: 2.233333333
E155: 31.10.1913 | F155: 1.793548387
E156: 30.11.1913 | F156: -3.366666667
E157: 31.12.1913 | F157: -8.767741935
E158: 31.01.1914 | F158: -9.483870968
E159: 28.02.1914 | F159: -4.467857143
E160: 31.03.1914 | F160: -7.535483871
E161: 30.04.1914 | F161: -1.986666667
E162: 31.05.1914 | F162: -1.625806452
E163: 30.06.1914 | F163: 1.276666667
E164: 31.07.1914 | F164: 3.164516129
E165: 31.08.1914 | F165: 5.706451613
E166: 30.09.1914 | F166: 1.493333333
E167: 31.10.1914 | F167: -1.916129032
E168: 30.11.1914 | F168: -5.996666667
E169: 31.12.1914 | F169: -6.638709677
E170: 31.01.1915 | F170: -11.71612903
E171: 28.02.1915 | F171: -10.05714286
E172: 31.03.1915 | F172: -8.603225806
E173: 30.04.1915 | F173: -5.496666667
E174: 31.05.1915 | F174: 2.451612903
E175: 30.06.1915 | F175: 4.82
E176: 31.07.1915 | F176: 3.977419355
E177: 31.08.1915 | F177: 2.916129032
E178: 30.09.1915 | F178: 1.426666667
E179: 31.10.1915 | F179: -3.825806452
E180: 30.11.1915 | F180: -7.543333333
E181: 31.12.1915 | F181: -5.209677419
E182: 31.01.1916 | F182: -6.703225806
E183: 29.02.1916 | F183: -9.444827586
E184: 31.03.1916 | F184: -6.741935484
E185: 30.04.1916 | F185: -4.053333333
E186: 31.05.1916 | F186: 0.6096774194
E187: 30.06.1916 | F187: 0.36
E188: 31.07.1916 | F188: 3.85483871
E189: 31.08.1916 | F189: 4.148387097
E190: 30.09.1916 | F190: 0.52
E191: 31.10.1916 | F191: -1.564516129
E192: 30.11.1916 | F192: -4.69
E193: 31.12.1916 | F193: -7.44516129
E194: 31.01.1917 | F194: -11.77741935
E195: 28.02.1917 | F195: -9.342857143
E196: 31.03.1917 | F196: -9.822580645
E197: 30.04.1917 | F197: -8.723333333
E198: 31.05.1917 | F198: 3.138709677
E199: 30.06.1917 | F199: 5.586666667
E200: 31.07.1917 | F200: 5.103225806
... 1210 more rows

Sheet Diagramm Max und Min

Sheet Auswertungen
A1: Temperaturveränderung gemittelt über Maxima und Minima / Monat
B3: Start | C3: Ende | E3: Auswertungsbereich | G3: Differenz
A4: Durchschn. Maximal | B4: 5.7 | C4: 6.1 | E4: 31.04.1901 - 31.08.1982 | G4: =-(B4-C4) -> 0.4
A5: Durchschn. Maximal | B5: 6.8 | C5: 7.4 | E5: 31.07.1982 - 31.08.2017 | G5: =-(B5-C5) -> 0.6
A6: Durchschn. Minimum | B6: -10.3 | C6: -10.4 | E6: 28.02.1901 - 31.03.1988 | G6: =-(B6-C6) -> -0.1
A7: Durchschn. Minimum | B7: -7.5 | C7: -9 | E7: 31.12.1988 - 18.02.2017 | G7: =-(B7-C7) -> -1.5
A9: Temperaturdifferenz ab 28.02.1901 - 31.03.2017 | G9: =SUM(G4:G8) -> -0.6
A11: Temperaturveränderung ab 28.02.1901 bis 31.03.1988 | G11: =G4+G6 -> 0.3
A12: Temperaturveränderung ab 31.07.1982 - 18.02.2017 | G12: =G5+G7 -> -0.9
G13: =SUM(G11:G12) -> -0.6
A15: Temperaturveränderung gemittelt über Monate
A17: 01.01.1901 - 31.12.1949 | B17: -2.8 | C17: -1.6 | G17: =-(B17-C17) -> 1.2
A18: 01.01.1950 - 31.03.1988 | B18: -2 | C18: -2 | G18: 0
A19: 01.04.1988 - 30.09.2017 | B19: -0.8 | C19: -0.5 | G19: =-(B19-C19) -> 0.3
G21: =SUM(G17:G20) -> 1.5

Sheet Juni 2018
A1: STN--- | B1: WBAN | C1: YEARMODA | D1: TEMP | F1: DEWP | H1: SLP | J1: STP | L1: VISIB | N1: WDSP | P1: MXSPD | Q1: GUST | R1: MAX | S1: MIN | T1: PRCP | U1: SNDP | V1: FRSHTT
A2: 66800 | B2: 99999 | C2: 20180601 | D2: 40 | E2: 24 | F2: 37.1 | G2: 24 | H2: 9999.9 | I2: 0 | J2: 757.2 | K2: 24 | L2: 999.9 | M2: 0 | N2: 7.4 | O2: 24 | P2: 20 | Q2: 999.9 | R2: 45.5 | S2: 35.1 | T2: 0.03G | U2: 102.4 | V2: 100000
A3: 66800 | B3: 99999 | C3: 20180602 | D3: 42.4 | E3: 24 | F3: 39.3 | G3: 24 | H3: 9999.9 | I3: 0 | J3: 757.7 | K3: 24 | L3: 999.9 | M3: 0 | N3: 3.1 | O3: 24 | P3: 8 | Q3: 999.9 | R3: 46.6 | S3: 38.1 | T3: 0.00G | U3: 94.5 | V3: 0
A4: 66800 | B4: 99999 | C4: 20180603 | D4: 46.2 | E4: 24 | F4: 39.4 | G4: 24 | H4: 9999.9 | I4: 0 | J4: 756.7 | K4: 24 | L4: 999.9 | M4: 0 | N4: 4.7 | O4: 24 | P4: 12 | Q4: 999.9 | R4: 50.5 | S4: 41.5 | T4: 0.00G | U4: 90.6 | V4: 0
A5: 66800 | B5: 99999 | C5: 20180604 | D5: 45.8 | E5: 23 | F5: 37.9 | G5: 23 | H5: 9999.9 | I5: 0 | J5: 752.6 | K5: 23 | L5: 999.9 | M5: 0 | N5: 5.5 | O5: 23 | P5: 15 | Q5: 999.9 | R5: 52.9 | S5: 42.1* | T5: 0.00G | U5: 86.6 | V5: 10000
A6: 66800 | B6: 99999 | C6: 20180605 | D6: 44.9 | E6: 24 | F6: 41.2 | G6: 24 | H6: 9999.9 | I6: 0 | J6: 752.1 | K6: 24 | L6: 999.9 | M6: 0 | N6: 6.1 | O6: 24 | P6: 9.9 | Q6: 999.9 | R6: 49.8 | S6: 41.4 | T6: 0.74G | U6: 82.7 | V6: 100000
A7: 66800 | B7: 99999 | C7: 20180606 | D7: 45.9 | E7: 24 | F7: 39.9 | G7: 24 | H7: 9999.9 | I7: 0 | J7: 753.7 | K7: 24 | L7: 999.9 | M7: 0 | N7: 4.3 | O7: 24 | P7: 17.1 | Q7: 999.9 | R7: 51.8 | S7: 43 | T7: 0.07G | U7: 80.7 | V7: 100000
A8: 66800 | B8: 99999 | C8: 20180607 | D8: 44.4 | E8: 24 | F8: 41.9 | G8: 24 | H8: 9999.9 | I8: 0 | J8: 755.3 | K8: 24 | L8: 999.9 | M8: 0 | N8: 3.5 | O8: 24 | P8: 8.9 | Q8: 12.6 | R8: 49.6 | S8: 40.3 | T8: 0.74G | U8: 74.8 | V8: 0
A9: 66800 | B9: 99999 | C9: 20180608 | D9: 44 | E9: 24 | F9: 40.1 | G9: 24 | H9: 9999.9 | I9: 0 | J9: 753.4 | K9: 24 | L9: 999.9 | M9: 0 | N9: 4.2 | O9: 24 | P9: 12 | Q9: 18.5 | R9: 48.6 | S9: 41.2* | T9: 0.13G | U9: 72.8 | V9: 10010
A10: 66800 | B10: 99999 | C10: 20180609 | D10: 45.1 | E10: 24 | F10: 42.8 | G10: 24 | H10: 9999.9 | I10: 0 | J10: 754.1 | K10: 24 | L10: 999.9 | M10: 0 | N10: 4.3 | O10: 24 | P10: 13 | Q10: 999.9 | R10: 51.8 | S10: 40.8 | T10: 0.71G | U10: 68.9 | V10: 100000
A11: 66800 | B11: 99999 | C11: 20180610 | D11: 46.6 | E11: 24 | F11: 42.5 | G11: 24 | H11: 9999.9 | I11: 0 | J11: 755 | K11: 24 | L11: 999.9 | M11: 0 | N11: 11.1 | O11: 24 | P11: 19 | Q11: 999.9 | R11: 51.1 | S11: 43 | T11: 0.78G | U11: 66.9 | V11: 0
A12: 66800 | B12: 99999 | C12: 20180611 | D12: 47.7 | E12: 24 | F12: 41.8 | G12: 24 | H12: 9999.9 | I12: 0 | J12: 753.3 | K12: 24 | L12: 999.9 | M12: 0 | N12: 7.3 | O12: 24 | P12: 15.9 | Q12: 999.9 | R12: 51.8 | S12: 43.7* | T12: 0.00G | U12: 65 | V12: 10000
A13: 66800 | B13: 99999 | C13: 20180612 | D13: 42.5 | E13: 24 | F13: 40.6 | G13: 24 | H13: 9999.9 | I13: 0 | J13: 750.1 | K13: 24 | L13: 999.9 | M13: 0 | N13: 3.4 | O13: 24 | P13: 8.9 | Q13: 999.9 | R13: 46.2 | S13: 39.0* | T13: 0.02G | U13: 63 | V13: 10000
A14: 66800 | B14: 99999 | C14: 20180613 | D14: 35.5 | E14: 24 | F14: 35.2 | G14: 24 | H14: 9999.9 | I14: 0 | J14: 749.5 | K14: 24 | L14: 999.9 | M14: 0 | N14: 3.4 | O14: 24 | P14: 9.9 | Q14: 999.9 | R14: 40.1* | S14: 30.6* | T14: 1.84G | U14: 51.2 | V14: 10000
A15: 66800 | B15: 99999 | C15: 20180614 | D15: 34.9 | E15: 24 | F15: 28.7 | G15: 24 | H15: 9999.9 | I15: 0 | J15: 752.2 | K15: 24 | L15: 999.9 | M15: 0 | N15: 4.6 | O15: 24 | P15: 14 | Q15: 999.9 | R15: 38.8 | S15: 27.9 | T15: 0.17G | U15: 47.2 | V15: 100000
A16: 66800 | B16: 99999 | C16: 20180615 | D16: 38.3 | E16: 24 | F16: 25.9 | G16: 23 | H16: 9999.9 | I16: 0 | J16: 754 | K16: 24 | L16: 999.9 | M16: 0 | N16: 2.9 | O16: 24 | P16: 11.1 | Q16: 999.9 | R16: 41.9 | S16: 32 | T16: 0.00G | U16: 45.3 | V16: 0
A17: 66800 | B17: 99999 | C17: 20180616 | D17: 41.8 | E17: 24 | F17: 30.8 | G17: 22 | H17: 9999.9 | I17: 0 | J17: 755 | K17: 24 | L17: 999.9 | M17: 0 | N17: 3.7 | O17: 24 | P17: 15.9 | Q17: 999.9 | R17: 47.5 | S17: 37.4 | T17: 0.00G | U17: 43.3 | V17: 100000
A18: 66800 | B18: 99999 | C18: 20180617 | D18: 40.3 | E18: 24 | F18: 37.7 | G18: 24 | H18: 9999.9 | I18: 0 | J18: 757 | K18: 24 | L18: 999.9 | M18: 0 | N18: 3.7 | O18: 24 | P18: 13 | Q18: 999.9 | R18: 45 | S18: 38.1* | T18: 0.00G | U18: 41.3 | V18: 110000
A19: 66800 | B19: 99999 | C19: 20180618 | D19: 40 | E19: 24 | F19: 39.6 | G19: 24 | H19: 9999.9 | I19: 0 | J19: 759.6 | K19: 24 | L19: 999.9 | M19: 0 | N19: 3.4 | O19: 24 | P19: 7 | Q19: 10.9 | R19: 43.3 | S19: 37.4 | T19: 0.48G | U19: 39.4 | V19: 100000
A20: 66800 | B20: 99999 | C20: 20180619 | D20: 44.8 | E20: 24 | F20: 36.6 | G20: 23 | H20: 9999.9 | I20: 0 | J20: 762.1 | K20: 24 | L20: 999.9 | M20: 0 | N20: 3.4 | O20: 24 | P20: 9.9 | Q20: 999.9 | R20: 49.8 | S20: 38.1 | T20: 0.00G | U20: 37.4 | V20: 100000
A21: 66800 | B21: 99999 | C21: 20180620 | D21: 50.9 | E21: 24 | F21: 36.7 | G21: 24 | H21: 9999.9 | I21: 0 | J21: 761.5 | K21: 24 | L21: 999.9 | M21: 0 | N21: 8.9 | O21: 24 | P21: 19 | Q21: 999.9 | R21: 56.7 | S21: 46 | T21: 0.00E | U21: 33.5 | V21: 0
A22: 66800 | B22: 99999 | C22: 20180621 | D22: 46.2 | E22: 24 | F22: 45.1 | G22: 24 | H22: 9999.9 | I22: 0 | J22: 758.4 | K22: 24 | L22: 999.9 | M22: 0 | N22: 12.5 | O22: 24 | P22: 19 | Q22: 999.9 | R22: 48.6 | S22: 38.3* | T22: 0.00G | U22: 31.5 | V22: 100000
A23: 66800 | B23: 99999 | C23: 20180622 | D23: 31.8 | E23: 24 | F23: 30.4 | G23: 24 | H23: 9999.9 | I23: 0 | J23: 757.1 | K23: 24 | L23: 999.9 | M23: 0 | N23: 5.7 | O23: 24 | P23: 12 | Q23: 999.9 | R23: 37.6* | S23: 28.6* | T23: 0.35G | U23: 29.5 | V23: 100000
A24: 66800 | B24: 99999 | C24: 20180623 | D24: 33.4 | E24: 24 | F24: 28.5 | G24: 24 | H24: 9999.9 | I24: 0 | J24: 757.6 | K24: 24 | L24: 999.9 | M24: 0 | N24: 6 | O24: 24 | P24: 12 | Q24: 999.9 | R24: 38.5 | S24: 28.2 | T24: 0.00G | U24: 25.6 | V24: 100000
A25: 66800 | B25: 99999 | C25: 20180624 | D25: 36.5 | E25: 22 | F25: 32.6 | G25: 22 | H25: 9999.9 | I25: 0 | J25: 756.2 | K25: 22 | L25: 999.9 | M25: 0 | N25: 4.5 | O25: 22 | P25: 8.9 | Q25: 15.3 | R25: 41.2 | S25: 32.9 | T25: 0.00G | U25: 21.7 | V25: 0

Sheet Juli 2018
A1: STN--- | B1: WBAN | C1: YEARMODA | D1: TEMP | F1: DEWP | H1: SLP | J1: STP | L1: VISIB | N1: WDSP | P1: MXSPD | Q1: GUST | R1: MAX | S1: MIN | T1: PRCP | U1: SNDP | V1: FRSHTT
A2: 66800 | B2: 99999 | C2: 20180706 | D2: 39.9 | E2: 24 | F2: 39.4 | G2: 24 | H2: 9999.9 | I2: 0 | J2: 757.4 | K2: 24 | L2: 999.9 | M2: 0 | N2: 8.4 | O2: 24 | P2: 15 | Q2: 999.9 | R2: 43.2 | S2: 38.1 | T2: 0.56G | U2: 999.9 | V2: 110000
A3: 66800 | B3: 99999 | C3: 20180707 | D3: 40.9 | E3: 24 | F3: 37.8 | G3: 24 | H3: 9999.9 | I3: 0 | J3: 760.2 | K3: 24 | L3: 999.9 | M3: 0 | N3: 3.2 | O3: 24 | P3: 8.9 | Q3: 999.9 | R3: 45.5 | S3: 37.0* | T3: 0.43G | U3: 999.9 | V3: 0
A4: 66800 | B4: 99999 | C4: 20180708 | D4: 42.9 | E4: 20 | F4: 39.5 | G4: 20 | H4: 9999.9 | I4: 0 | J4: 760 | K4: 20 | L4: 999.9 | M4: 0 | N4: 3.2 | O4: 20 | P4: 8 | Q4: 999.9 | R4: 46.2* | S4: 40.3 | T4: 0.00G | U4: 999.9 | V4: 100000
A5: 66800 | B5: 99999 | C5: 20180709 | D5: 43.7 | E5: 24 | F5: 37.2 | G5: 24 | H5: 9999.9 | I5: 0 | J5: 758.9 | K5: 24 | L5: 999.9 | M5: 0 | N5: 3.1 | O5: 24 | P5: 8.9 | Q5: 999.9 | R5: 50.4 | S5: 41.2 | T5: 0.00G | U5: 999.9 | V5: 100000
A6: 66800 | B6: 99999 | C6: 20180710 | D6: 40.2 | E6: 24 | F6: 39 | G6: 24 | H6: 9999.9 | I6: 0 | J6: 755 | K6: 24 | L6: 999.9 | M6: 0 | N6: 10.5 | O6: 24 | P6: 19 | Q6: 999.9 | R6: 42.3* | S6: 37.8* | T6: 0.00G | U6: 999.9 | V6: 100000
A7: 66800 | B7: 99999 | C7: 20180711 | D7: 36.7 | E7: 24 | F7: 36.5 | G7: 24 | H7: 9999.9 | I7: 0 | J7: 753.3 | K7: 24 | L7: 999.9 | M7: 0 | N7: 14.9 | O7: 24 | P7: 22.9 | Q7: 999.9 | R7: 38.3* | S7: 35.4* | T7: 0.18G | U7: 999.9 | V7: 100000
A8: 66800 | B8: 99999 | C8: 20180712 | D8: 41.4 | E8: 24 | F8: 34 | G8: 24 | H8: 9999.9 | I8: 0 | J8: 755.9 | K8: 24 | L8: 999.9 | M8: 0 | N8: 8.9 | O8: 24 | P8: 19 | Q8: 999.9 | R8: 47.7 | S8: 35.8 | T8: 0.00G | U8: 999.9 | V8: 100000
A9: 66800 | B9: 99999 | C9: 20180713 | D9: 44.8 | E9: 24 | F9: 36.7 | G9: 24 | H9: 9999.9 | I9: 0 | J9: 759 | K9: 24 | L9: 999.9 | M9: 0 | N9: 5.4 | O9: 24 | P9: 9.9 | Q9: 999.9 | R9: 52.2 | S9: 39.6 | T9: 0.00G | U9: 999.9 | V9: 0
A10: 66800 | B10: 99999 | C10: 20180714 | D10: 47 | E10: 24 | F10: 41.3 | G10: 24 | H10: 9999.9 | I10: 0 | J10: 759.2 | K10: 24 | L10: 999.9 | M10: 0 | N10: 7.2 | O10: 24 | P10: 14 | Q10: 999.9 | R10: 53.2 | S10: 44.2 | T10: 0.00G | U10: 999.9 | V10: 0
A11: 66800 | B11: 99999 | C11: 20180715 | D11: 46 | E11: 24 | F11: 38 | G11: 24 | H11: 9999.9 | I11: 0 | J11: 757.1 | K11: 24 | L11: 999.9 | M11: 0 | N11: 4.3 | O11: 24 | P11: 13 | Q11: 999.9 | R11: 52.7 | S11: 41.9* | T11: 0.00G | U11: 999.9 | V11: 0
A12: 66800 | B12: 99999 | C12: 20180716 | D12: 44.6 | E12: 24 | F12: 39.2 | G12: 24 | H12: 9999.9 | I12: 0 | J12: 754.8 | K12: 24 | L12: 999.9 | M12: 0 | N12: 7.1 | O12: 24 | P12: 22.9 | Q12: 999.9 | R12: 51.3 | S12: 39.6 | T12: 0.03G | U12: 999.9 | V12: 0
A13: 66800 | B13: 99999 | C13: 20180717 | D13: 43 | E13: 24 | F13: 37.6 | G13: 24 | H13: 9999.9 | I13: 0 | J13: 757 | K13: 24 | L13: 999.9 | M13: 0 | N13: 5.3 | O13: 24 | P13: 11.1 | Q13: 999.9 | R13: 47.1 | S13: 39.9 | T13: 0.00G | U13: 999.9 | V13: 100000
A14: 66800 | B14: 99999 | C14: 20180718 | D14: 47 | E14: 24 | F14: 39.1 | G14: 24 | H14: 9999.9 | I14: 0 | J14: 758.3 | K14: 24 | L14: 999.9 | M14: 0 | N14: 3 | O14: 24 | P14: 7 | Q14: 999.9 | R14: 53.8 | S14: 41.7 | T14: 0.00G | U14: 999.9 | V14: 100000
A15: 66800 | B15: 99999 | C15: 20180719 | D15: 48.6 | E15: 24 | F15: 39.6 | G15: 24 | H15: 9999.9 | I15: 0 | J15: 758 | K15: 24 | L15: 999.9 | M15: 0 | N15: 2.9 | O15: 24 | P15: 8 | Q15: 999.9 | R15: 52.5 | S15: 45.9 | T15: 0.00G | U15: 999.9 | V15: 0
A16: 66800 | B16: 99999 | C16: 20180720 | D16: 48.1 | E16: 24 | F16: 42.6 | G16: 24 | H16: 9999.9 | I16: 0 | J16: 756.5 | K16: 24 | L16: 999.9 | M16: 0 | N16: 5.5 | O16: 24 | P16: 8.9 | Q16: 999.9 | R16: 53.8 | S16: 43.3* | T16: 0.00G | U16: 999.9 | V16: 0
A17: 66800 | B17: 99999 | C17: 20180721 | D17: 41.3 | E17: 24 | F17: 40.8 | G17: 24 | H17: 9999.9 | I17: 0 | J17: 753.4 | K17: 24 | L17: 999.9 | M17: 0 | N17: 7.9 | O17: 24 | P17: 17.1 | Q17: 999.9 | R17: 43.2 | S17: 39.9* | T17: 0.17G | U17: 999.9 | V17: 110000
A18: 66800 | B18: 99999 | C18: 20180722 | D18: 40.1 | E18: 24 | F18: 39.5 | G18: 24 | H18: 9999.9 | I18: 0 | J18: 754.7 | K18: 24 | L18: 999.9 | M18: 0 | N18: 6.4 | O18: 24 | P18: 13 | Q18: 999.9 | R18: 41.9 | S18: 37.6 | T18: 0.46G | U18: 999.9 | V18: 100000
A19: 66800 | B19: 99999 | C19: 20180723 | D19: 43.9 | E19: 22 | F19: 42.4 | G19: 22 | H19: 9999.9 | I19: 0 | J19: 757 | K19: 22 | L19: 999.9 | M19: 0 | N19: 6.4 | O19: 22 | P19: 14 | Q19: 999.9 | R19: 47.7 | S19: 40.3 | T19: 0.19G | U19: 999.9 | V19: 110000

Sheet Januar 2019
B2: STN--- | C2: WBAN | D2: YEARMODA | E2: TEMP | G2: DEWP | I2: SLP | K2: STP | M2: VISIB | O2: WDSP | Q2: MXSPD | R2: GUST | S2: MAX | T2: MIN | U2: PRCP | V2: SNDP | W2: FRSHTT
B3: 66800 | C3: 99999 | D3: 20180823 | E3: 49.3 | F3: 24 | G3: 44.2 | H3: 24 | I3: 9999.9 | J3: 0 | K3: 757.8 | L3: 24 | M3: 999.9 | N3: 0 | O3: 6.1 | P3: 24 | Q3: 12 | R3: 999.9 | S3: 56.7 | T3: 43.5* | U3: 0.14G | V3: 999.9 | W3: 100000
B4: 66800 | C4: 99999 | D4: 20180824 | E4: 40.9 | F4: 24 | G4: 39.8 | H4: 24 | I4: 9999.9 | J4: 0 | K4: 754.1 | L4: 24 | M4: 999.9 | N4: 0 | O4: 16 | P4: 24 | Q4: 24.1 | R4: 999.9 | S4: 45.9* | T4: 35.6* | U4: 0.94G | V4: 999.9 | W4: 10000
B5: 66800 | C5: 99999 | D5: 20180825 | E5: 32 | F5: 24 | G5: 31.8 | H5: 24 | I5: 9999.9 | J5: 0 | K5: 750.7 | L5: 24 | M5: 999.9 | N5: 0 | O5: 12 | P5: 24 | Q5: 22 | R5: 999.9 | S5: 34.9 | T5: 27.9* | U5: 1.28G | V5: 999.9 | W5: 1000
B6: 66800 | C6: 99999 | D6: 20180826 | E6: 29.9 | F6: 24 | G6: 21.8 | H6: 23 | I6: 9999.9 | J6: 0 | K6: 752 | L6: 24 | M6: 999.9 | N6: 0 | O6: 6.2 | P6: 24 | Q6: 21 | R6: 999.9 | S6: 37.0* | T6: 23.2 | U6: 0.47G | V6: 1.2 | W6: 100000
B7: 66800 | C7: 99999 | D7: 20180827 | E7: 42.1 | F7: 24 | G7: 20.2 | H7: 23 | I7: 9999.9 | J7: 0 | K7: 756.1 | L7: 24 | M7: 999.9 | N7: 0 | O7: 18 | P7: 24 | Q7: 24.1 | R7: 999.9 | S7: 46.9 | T7: 33.4 | U7: 0.00G | V7: 999.9 | W7: 0
B8: 66800 | C8: 99999 | D8: 20180828 | E8: 49.2 | F8: 24 | G8: 37.5 | H8: 24 | I8: 9999.9 | J8: 0 | K8: 759.1 | L8: 24 | M8: 999.9 | N8: 0 | O8: 8.5 | P8: 24 | Q8: 17.1 | R8: 999.9 | S8: 56.7 | T8: 41.7 | U8: 0.00G | V8: 999.9 | W8: 0
B9: 66800 | C9: 99999 | D9: 20180829 | E9: 47.9 | F9: 24 | G9: 42.4 | H9: 24 | I9: 9999.9 | J9: 0 | K9: 757.4 | L9: 24 | M9: 999.9 | N9: 0 | O9: 15.7 | P9: 24 | Q9: 36.9 | R9: 999.9 | S9: 56.1 | T9: 41.9* | U9: 0.00G | V9: 999.9 | W9: 100000
B10: 66800 | C10: 99999 | D10: 20180830 | E10: 39.5 | F10: 24 | G10: 39.1 | H10: 24 | I10: 9999.9 | J10: 0 | K10: 757.1 | L10: 24 | M10: 999.9 | N10: 0 | O10: 5.8 | P10: 24 | Q10: 22.9 | R10: 999.9 | S10: 42.4* | T10: 36.3* | U10: 1.26G | V10: 999.9 | W10: 110000
B11: 66800 | C11: 99999 | D11: 20180831 | E11: 37.1 | F11: 24 | G11: 36.9 | H11: 24 | I11: 9999.9 | J11: 0 | K11: 755 | L11: 24 | M11: 999.9 | N11: 0 | O11: 6.2 | P11: 24 | Q11: 15 | R11: 999.9 | S11: 39.9 | T11: 34.5* | U11: 0.53G | V11: 999.9 | W11: 10000
B12: 66800 | C12: 99999 | D12: 20180901 | E12: 32.5 | F12: 24 | G12: 32.5 | H12: 24 | I12: 9999.9 | J12: 0 | K12: 755.8 | L12: 24 | M12: 999.9 | N12: 0 | O12: 9 | P12: 24 | Q12: 14 | R12: 999.9 | S12: 34.3* | T12: 31.3* | U12: 1.41G | V12: 0.8 | W12: 11000
B13: 66800 | C13: 99999 | D13: 20180902 | E13: 36.2 | F13: 24 | G13: 36.1 | H13: 24 | I13: 9999.9 | J13: 0 | K13: 755.1 | L13: 24 | M13: 999.9 | N13: 0 | O13: 8.3 | P13: 24 | Q13: 17.1 | R13: 999.9 | S13: 39.7 | T13: 31.1 | U13: 0.23G | V13: 0.4 | W13: 110000
B14: 66800 | C14: 99999 | D14: 20180903 | E14: 37.4 | F14: 24 | G14: 35 | H14: 24 | I14: 9999.9 | J14: 0 | K14: 753.6 | L14: 24 | M14: 999.9 | N14: 0 | O14: 4.3 | P14: 24 | Q14: 8 | R14: 999.9 | S14: 41.4 | T14: 35.8 | U14: 0.00G | V14: 999.9 | W14: 110000
B15: 66800 | C15: 99999 | D15: 20180904 | E15: 39.9 | F15: 24 | G15: 36.3 | H15: 24 | I15: 9999.9 | J15: 0 | K15: 754.8 | L15: 24 | M15: 999.9 | N15: 0 | O15: 2.5 | P15: 24 | Q15: 11.1 | R15: 999.9 | S15: 46.6 | T15: 35.6 | U15: 0.00G | V15: 999.9 | W15: 0
B16: 66800 | C16: 99999 | D16: 20180905 | E16: 44.5 | F16: 24 | G16: 34.7 | H16: 24 | I16: 9999.9 | J16: 0 | K16: 756.4 | L16: 24 | M16: 999.9 | N16: 0 | O16: 0.8 | P16: 24 | Q16: 2.9 | R16: 999.9 | S16: 49.3 | T16: 39.6 | U16: 0.00G | V16: 999.9 | W16: 100000
B17: 66800 | C17: 99999 | D17: 20180906 | E17: 44.3 | F17: 24 | G17: 38.3 | H17: 24 | I17: 9999.9 | J17: 0 | K17: 753.8 | L17: 24 | M17: 999.9 | N17: 0 | O17: 3 | P17: 24 | Q17: 9.9 | R17: 999.9 | S17: 51.4 | T17: 39.4* | U17: 0.00G | V17: 999.9 | W17: 0
B18: 66800 | C18: 99999 | D18: 20180907 | E18: 38.9 | F18: 24 | G18: 38.9 | H18: 24 | I18: 9999.9 | J18: 0 | K18: 754.3 | L18: 24 | M18: 999.9 | N18: 0 | O18: 7 | P18: 24 | Q18: 15.9 | R18: 999.9 | S18: 40.5 | T18: 37.8* | U18: 2.09G | V18: 999.9 | W18: 110000
B19: 66800 | C19: 99999 | D19: 20180908 | E19: 42.4 | F19: 24 | G19: 34 | H19: 24 | I19: 9999.9 | J19: 0 | K19: 758.3 | L19: 24 | M19: 999.9 | N19: 0 | O19: 10.8 | P19: 24 | Q19: 17.1 | R19: 999.9 | S19: 48.9 | T19: 36.3 | U19: 0.33G | V19: 999.9 | W19: 0
B20: 66800 | C20: 99999 | D20: 20180909 | E20: 45.2 | F20: 24 | G20: 37.3 | H20: 24 | I20: 9999.9 | J20: 0 | K20: 761 | L20: 24 | M20: 999.9 | N20: 0 | O20: 9.6 | P20: 24 | Q20: 17.1 | R20: 999.9 | S20: 52.5 | T20: 41.5 | U20: 0.00G | V20: 999.9 | W20: 0
B21: 66800 | C21: 99999 | D21: 20180910 | E21: 44.8 | F21: 24 | G21: 36.2 | H21: 24 | I21: 9999.9 | J21: 0 | K21: 762.8 | L21: 24 | M21: 999.9 | N21: 0 | O21: 6.6 | P21: 24 | Q21: 15 | R21: 999.9 | S21: 50.4 | T21: 42.4 | U21: 0.00G | V21: 999.9 | W21: 0
B22: 66800 | C22: 99999 | D22: 20180911 | E22: 49.3 | F22: 24 | G22: 28.8 | H22: 24 | I22: 9999.9 | J22: 0 | K22: 764.9 | L22: 24 | M22: 999.9 | N22: 0 | O22: 11.9 | P22: 24 | Q22: 18.1 | R22: 999.9 | S22: 56.7 | T22: 42.8 | U22: 0.00G | V22: 999.9 | W22: 0
B23: 66800 | C23: 99999 | D23: 20180912 | E23: 51.4 | F23: 24 | G23: 36.7 | H23: 24 | I23: 9999.9 | J23: 0 | K23: 763.3 | L23: 24 | M23: 999.9 | N23: 0 | O23: 9.4 | P23: 24 | Q23: 19 | R23: 999.9 | S23: 56.1 | T23: 48.4* | U23: 0.00G | V23: 999.9 | W23: 0
B24: 66800 | C24: 99999 | D24: 20180913 | E24: 44.4 | F24: 24 | G24: 42.1 | H24: 24 | I24: 9999.9 | J24: 0 | K24: 758.6 | L24: 24 | M24: 999.9 | N24: 0 | O24: 6.7 | P24: 24 | Q24: 17.1 | R24: 999.9 | S24: 49.1 | T24: 40.3* | U24: 0.46G | V24: 999.9 | W24: 10
B25: 66800 | C25: 99999 | D25: 20180914 | E25: 41.5 | F25: 24 | G25: 41 | H25: 24 | I25: 9999.9 | J25: 0 | K25: 757.7 | L25: 24 | M25: 999.9 | N25: 0 | O25: 4.4 | P25: 24 | Q25: 8 | R25: 999.9 | S25: 45.3 | T25: 39.7 | U25: 1.08G | V25: 999.9 | W25: 110000
B26: 66800 | C26: 99999 | D26: 20180915 | E26: 40.3 | F26: 16 | G26: 39.4 | H26: 16 | I26: 9999.9 | J26: 0 | K26: 759.5 | L26: 16 | M26: 999.9 | N26: 0 | O26: 6.8 | P26: 16 | Q26: 14 | R26: 999.9 | S26: 43.5* | T26: 37.2 | U26: 0.28G | V26: 999.9 | W26: 0
B27: 66800 | C27: 99999 | D27: 20180916 | E27: 47.1 | F27: 21 | G27: 40.7 | H27: 21 | I27: 9999.9 | J27: 0 | K27: 761 | L27: 21 | M27: 999.9 | N27: 0 | O27: 6.5 | P27: 21 | Q27: 15.9 | R27: 999.9 | S27: 53.4 | T27: 41.4 | U27: 0.00G | V27: 999.9 | W27: 0
B28: 66800 | C28: 99999 | D28: 20180918 | E28: 46.9 | F28: 15 | G28: 39.6 | H28: 15 | I28: 9999.9 | J28: 0 | K28: 759.8 | L28: 15 | M28: 999.9 | N28: 0 | O28: 3.6 | P28: 15 | Q28: 9.9 | R28: 999.9 | S28: 51.3 | T28: 44.8* | U28: 0.08E | V28: 999.9 | W28: 0
B29: 66800 | C29: 99999 | D29: 20180919 | E29: 45.6 | F29: 24 | G29: 39.5 | H29: 24 | I29: 9999.9 | J29: 0 | K29: 761.3 | L29: 24 | M29: 999.9 | N29: 0 | O29: 2.7 | P29: 24 | Q29: 7 | R29: 999.9 | S29: 49.6 | T29: 43.2 | U29: 0.00F | V29: 999.9 | W29: 0
B30: 66800 | C30: 99999 | D30: 20180920 | E30: 48.4 | F30: 24 | G30: 38.7 | H30: 24 | I30: 9999.9 | J30: 0 | K30: 760.6 | L30: 24 | M30: 999.9 | N30: 0 | O30: 2.7 | P30: 24 | Q30: 8.9 | R30: 999.9 | S30: 54.3 | T30: 45.1 | U30: 0.00G | V30: 999.9 | W30: 0
B31: 66800 | C31: 99999 | D31: 20180921 | E31: 46.2 | F31: 24 | G31: 39.9 | H31: 24 | I31: 9999.9 | J31: 0 | K31: 756.6 | L31: 24 | M31: 999.9 | N31: 0 | O31: 15 | P31: 24 | Q31: 29.9 | R31: 999.9 | S31: 52.9 | T31: 38.1* | U31: 0.00G | V31: 999.9 | W31: 0
B32: 66800 | C32: 99999 | D32: 20180922 | E32: 36 | F32: 24 | G32: 27.6 | H32: 24 | I32: 9999.9 | J32: 0 | K32: 756.7 | L32: 24 | M32: 999.9 | N32: 0 | O32: 27.3 | P32: 24 | Q32: 42 | R32: 999.9 | S32: 42.3 | T32: 29.3 | U32: 0.47G | V32: 999.9 | W32: 100000
B33: 66800 | C33: 99999 | D33: 20180923 | E33: 46 | F33: 22 | G33: 44.8 | H33: 22 | I33: 9999.9 | J33: 0 | K33: 756 | L33: 22 | M33: 999.9 | N33: 0 | O33: 30.8 | P33: 22 | Q33: 41 | R33: 999.9 | S33: 51.8 | T33: 34.3 | U33: 0.52G | V33: 999.9 | W33: 10000
B34: 66800 | C34: 99999 | D34: 20180924 | E34: 23 | F34: 5 | G34: 9999.9 | H34: 0 | I34: 9999.9 | J34: 0 | K34: 761.8 | L34: 5 | M34: 999.9 | N34: 0 | O34: 2.6 | P34: 5 | Q34: 7 | R34: 999.9 | S34: 25.0* | T34: 20.8* | U34: 0.00G | V34: 999.9 | W34: 0
B35: 66800 | C35: 99999 | D35: 20180925 | E35: 32.8 | F35: 23 | G35: -4.7 | H35: 22 | I35: 9999.9 | J35: 0 | K35: 763.3 | L35: 23 | M35: 999.9 | N35: 0 | O35: 3.6 | P35: 23 | Q35: 9.9 | R35: 999.9 | S35: 39.0* | T35: 20.5 | U35: 0.00G | V35: 0.8 | W35: 0
B36: 66800 | C36: 99999 | D36: 20180926 | E36: 45.2 | F36: 24 | G36: 2.5 | H36: 24 | I36: 9999.9 | J36: 0 | K36: 767 | L36: 24 | M36: 999.9 | N36: 0 | O36: 2.7 | P36: 24 | Q36: 11.1 | R36: 999.9 | S36: 48.9 | T36: 37.4 | U36: 0.00G | V36: 1.2 | W36: 0
B37: 66800 | C37: 99999 | D37: 20180927 | E37: 48.5 | F37: 24 | G37: 18.9 | H37: 24 | I37: 9999.9 | J37: 0 | K37: 765.2 | L37: 24 | M37: 999.9 | N37: 0 | O37: 7.7 | P37: 24 | Q37: 22 | R37: 999.9 | S37: 55.6 | T37: 45.0* | U37: 0.00G | V37: 999.9 | W37: 0
B38: 66800 | C38: 99999 | D38: 20180928 | E38: 41.2 | F38: 24 | G38: 31.5 | H38: 24 | I38: 9999.9 | J38: 0 | K38: 758.8 | L38: 24 | M38: 999.9 | N38: 0 | O38: 11.6 | P38: 24 | Q38: 27 | R38: 999.9 | S38: 48.6 | T38: 36.5* | U38: 0.00G | V38: 999.9 | W38: 0
B39: 66800 | C39: 99999 | D39: 20180929 | E39: 40.4 | F39: 24 | G39: 34 | H39: 24 | I39: 9999.9 | J39: 0 | K39: 756.9 | L39: 24 | M39: 999.9 | N39: 0 | O39: 10.8 | P39: 24 | Q39: 21 | R39: 999.9 | S39: 47.5 | T39: 34.2 | U39: 0.01G | V39: 999.9 | W39: 0
B40: 66800 | C40: 99999 | D40: 20180930 | E40: 39.2 | F40: 24 | G40: 32.6 | H40: 24 | I40: 9999.9 | J40: 0 | K40: 754.6 | L40: 24 | M40: 999.9 | N40: 0 | O40: 10.3 | P40: 24 | Q40: 27 | R40: 999.9 | S40: 46.9 | T40: 32.9* | U40: 0.00G | V40: 999.9 | W40: 0
B41: 66800 | C41: 99999 | D41: 20181001 | E41: 25.5 | F41: 24 | G41: 25.2 | H41: 24 | I41: 9999.9 | J41: 0 | K41: 749.5 | L41: 24 | M41: 999.9 | N41: 0 | O41: 7.5 | P41: 24 | Q41: 17.1 | R41: 999.9 | S41: 32.5* | T41: 21.9* | U41: 0.81G | V41: 0.4 | W41: 11000
B42: 66800 | C42: 99999 | D42: 20181002 | E42: 24.3 | F42: 23 | G42: 20.4 | H42: 23 | I42: 9999.9 | J42: 0 | K42: 753.9 | L42: 23 | M42: 999.9 | N42: 0 | O42: 15 | P42: 23 | Q42: 28 | R42: 999.9 | S42: 31.8* | T42: 18.3* | U42: 1.09G | V42: 4.7 | W42: 100000
B43: 66800 | C43: 99999 | D43: 20181003 | E43: 32 | F43: 24 | G43: 31.4 | H43: 23 | I43: 9999.9 | J43: 0 | K43: 758.7 | L43: 24 | M43: 999.9 | N43: 0 | O43: 9.1 | P43: 24 | Q43: 15.9 | R43: 999.9 | S43: 37.0* | T43: 29.5 | U43: 0.29G | V43: 2.4 | W43: 110000
B44: 66800 | C44: 99999 | D44: 20181004 | E44: 43 | F44: 24 | G44: 22.7 | H44: 23 | I44: 9999.9 | J44: 0 | K44: 760.3 | L44: 24 | M44: 999.9 | N44: 0 | O44: 5.5 | P44: 24 | Q44: 9.9 | R44: 12.2 | S44: 47.8 | T44: 31.5 | U44: 0.04G | V44: 2.4 | W44: 0
B45: 66800 | C45: 99999 | D45: 20181005 | E45: 45.2 | F45: 23 | G45: 27.3 | H45: 23 | I45: 9999.9 | J45: 0 | K45: 758.5 | L45: 23 | M45: 999.9 | N45: 0 | O45: 5.7 | P45: 23 | Q45: 13 | R45: 999.9 | S45: 50 | T45: 41.2 | U45: 0.00G | V45: 1.2 | W45: 0
B46: 66800 | C46: 99999 | D46: 20181006 | E46: 41.6 | F46: 24 | G46: 29.2 | H46: 24 | I46: 9999.9 | J46: 0 | K46: 753.7 | L46: 24 | M46: 999.9 | N46: 0 | O46: 6.1 | P46: 24 | Q46: 12 | R46: 999.9 | S46: 45.7 | T46: 38.7* | U46: 0.00G | V46: 0.8 | W46: 0
B47: 66800 | C47: 99999 | D47: 20181007 | E47: 37.6 | F47: 24 | G47: 35.6 | H47: 24 | I47: 9999.9 | J47: 0 | K47: 752.9 | L47: 24 | M47: 999.9 | N47: 0 | O47: 6.3 | P47: 24 | Q47: 15 | R47: 999.9 | S47: 39.9 | T47: 35.6 | U47: 0.00G | V47: 999.9 | W47: 100000
B48: 66800 | C48: 99999 | D48: 20181008 | E48: 43.4 | F48: 24 | G48: 33.5 | H48: 24 | I48: 9999.9 | J48: 0 | K48: 756.9 | L48: 24 | M48: 999.9 | N48: 0 | O48: 4.4 | P48: 24 | Q48: 8.9 | R48: 10.3 | S48: 48.9 | T48: 37.4 | U48: 0.00G | V48: 999.9 | W48: 0
B49: 66800 | C49: 99999 | D49: 20181009 | E49: 43.9 | F49: 24 | G49: 33.5 | H49: 24 | I49: 9999.9 | J49: 0 | K49: 758.6 | L49: 24 | M49: 999.9 | N49: 0 | O49: 2.1 | P49: 24 | Q49: 9.9 | R49: 999.9 | S49: 50.4 | T49: 41.7 | U49: 0.00G | V49: 999.9 | W49: 0
B50: 66800 | C50: 99999 | D50: 20181010 | E50: 41.6 | F50: 23 | G50: 29.3 | H50: 23 | I50: 9999.9 | J50: 0 | K50: 755.9 | L50: 23 | M50: 999.9 | N50: 0 | O50: 17.2 | P50: 23 | Q50: 24.1 | R50: 999.9 | S50: 46.4 | T50: 39.0* | U50: 0.00G | V50: 999.9 | W50: 0
B51: 66800 | C51: 99999 | D51: 20181011 | E51: 41.1 | F51: 24 | G51: 31.1 | H51: 24 | I51: 9999.9 | J51: 0 | K51: 755.2 | L51: 24 | M51: 999.9 | N51: 0 | O51: 13.3 | P51: 24 | Q51: 20 | R51: 999.9 | S51: 43.5 | T51: 38.5 | U51: 0.00G | V51: 999.9 | W51: 10000
B52: 66800 | C52: 99999 | D52: 20181012 | E52: 43 | F52: 24 | G52: 32.2 | H52: 24 | I52: 9999.9 | J52: 0 | K52: 761.2 | L52: 24 | M52: 999.9 | N52: 0 | O52: 5.3 | P52: 24 | Q52: 13 | R52: 999.9 | S52: 49.1 | T52: 39.2 | U52: 0.00G | V52: 999.9 | W52: 0
B53: 66800 | C53: 99999 | D53: 20181013 | E53: 44.2 | F53: 24 | G53: 31.1 | H53: 24 | I53: 9999.9 | J53: 0 | K53: 759.5 | L53: 24 | M53: 999.9 | N53: 0 | O53: 6.2 | P53: 24 | Q53: 13 | R53: 999.9 | S53: 49.8 | T53: 40.8* | U53: 0.00G | V53: 999.9 | W53: 0
B54: 66800 | C54: 99999 | D54: 20181014 | E54: 41.3 | F54: 24 | G54: 18.6 | H54: 24 | I54: 9999.9 | J54: 0 | K54: 754 | L54: 24 | M54: 999.9 | N54: 0 | O54: 14.4 | P54: 24 | Q54: 22 | R54: 30.9 | S54: 46.4 | T54: 36.9* | U54: 0.00G | V54: 999.9 | W54: 0
B55: 66800 | C55: 99999 | D55: 20181015 | E55: 38.1 | F55: 24 | G55: 24 | H55: 24 | I55: 9999.9 | J55: 0 | K55: 753.3 | L55: 24 | M55: 999.9 | N55: 0 | O55: 10 | P55: 24 | Q55: 15.9 | R55: 33.8 | S55: 41.5 | T55: 35.4 | U55: 0.00G | V55: 999.9 | W55: 0
B56: 66800 | C56: 99999 | D56: 20181016 | E56: 38.6 | F56: 23 | G56: 26.2 | H56: 23 | I56: 9999.9 | J56: 0 | K56: 756 | L56: 20 | M56: 999.9 | N56: 0 | O56: 1.9 | P56: 23 | Q56: 7 | R56: 999.9 | S56: 44.1 | T56: 36.3 | U56: 0.00G | V56: 999.9 | W56: 0
B57: 66800 | C57: 99999 | D57: 20181017 | E57: 40 | F57: 23 | G57: 28.2 | H57: 23 | I57: 9999.9 | J57: 0 | K57: 755.4 | L57: 12 | M57: 999.9 | N57: 0 | O57: 1.2 | P57: 23 | Q57: 4.1 | R57: 999.9 | S57: 46.8 | T57: 37.4 | U57: 0.00G | V57: 999.9 | W57: 0
B58: 66800 | C58: 99999 | D58: 20181018 | E58: 39.3 | F58: 24 | G58: 28.7 | H58: 24 | I58: 9999.9 | J58: 0 | K58: 755.3 | L58: 24 | M58: 999.9 | N58: 0 | O58: 6.6 | P58: 24 | Q58: 14 | R58: 999.9 | S58: 41.4* | T58: 37.0* | U58: 0.00G | V58: 999.9 | W58: 0
B59: 66800 | C59: 99999 | D59: 20181019 | E59: 42.7 | F59: 21 | G59: 20 | H59: 21 | I59: 9999.9 | J59: 0 | K59: 757.1 | L59: 21 | M59: 999.9 | N59: 0 | O59: 5.1 | P59: 21 | Q59: 12 | R59: 999.9 | S59: 48.2 | T59: 36.5 | U59: 0.00G | V59: 999.9 | W59: 0
B60: 66800 | C60: 99999 | D60: 20181020 | E60: 39.2 | F60: 24 | G60: 15.7 | H60: 24 | I60: 9999.9 | J60: 0 | K60: 760.6 | L60: 24 | M60: 999.9 | N60: 0 | O60: 5.2 | P60: 24 | Q60: 11.1 | R60: 999.9 | S60: 43.2 | T60: 37.4 | U60: 0.00G | V60: 999.9 | W60: 0
B61: 66800 | C61: 99999 | D61: 20181021 | E61: 35.6 | F61: 22 | G61: -2.2 | H61: 21 | I61: 9999.9 | J61: 0 | K61: 758.5 | L61: 22 | M61: 999.9 | N61: 0 | O61: 10.7 | P61: 22 | Q61: 20 | R61: 999.9 | S61: 40.5* | T61: 31.8* | U61: 0.00G | V61: 999.9 | W61: 0
B62: 66800 | C62: 99999 | D62: 20181022 | E62: 32.8 | F62: 24 | G62: 7.6 | H62: 24 | I62: 9999.9 | J62: 0 | K62: 757.9 | L62: 24 | M62: 999.9 | N62: 0 | O62: 12.8 | P62: 24 | Q62: 17.1 | R62: 999.9 | S62: 37 | T62: 29.7* | U62: 0.00G | V62: 999.9 | W62: 0
B63: 66800 | C63: 99999 | D63: 20181023 | E63: 32.3 | F63: 19 | G63: 6.6 | H63: 18 | I63: 9999.9 | J63: 0 | K63: 759.5 | L63: 19 | M63: 999.9 | N63: 0 | O63: 14.8 | P63: 19 | Q63: 25.1 | R63: 999.9 | S63: 37.4 | T63: 28.0* | U63: 0.00G | V63: 999.9 | W63: 0
B64: 66800 | C64: 99999 | D64: 20181024 | E64: 33.8 | F64: 23 | G64: 32.2 | H64: 23 | I64: 9999.9 | J64: 0 | K64: 758.2 | L64: 23 | M64: 999.9 | N64: 0 | O64: 16.8 | P64: 23 | Q64: 25.1 | R64: 28 | S64: 36.7 | T64: 27.5 | U64: 0.10G | V64: 999.9 | W64: 110000
B65: 66800 | C65: 99999 | D65: 20181025 | E65: 37.2 | F65: 24 | G65: 26.3 | H65: 24 | I65: 9999.9 | J65: 0 | K65: 755.5 | L65: 24 | M65: 999.9 | N65: 0 | O65: 16.6 | P65: 24 | Q65: 24.1 | R65: 29.9 | S65: 40.6 | T65: 33.1 | U65: 0.62G | V65: 999.9 | W65: 0
B66: 66800 | C66: 99999 | D66: 20181026 | E66: 36.3 | F66: 23 | G66: 11.1 | H66: 23 | I66: 9999.9 | J66: 0 | K66: 748.3 | L66: 23 | M66: 999.9 | N66: 0 | O66: 20.5 | P66: 23 | Q66: 27 | R66: 999.9 | S66: 40.3 | T66: 29.1* | U66: 0.00G | V66: 999.9 | W66: 0
B67: 66800 | C67: 99999 | D67: 20181027 | E67: 24.1 | F67: 24 | G67: 21.4 | H67: 24 | I67: 9999.9 | J67: 0 | K67: 740.2 | L67: 24 | M67: 999.9 | N67: 0 | O67: 9.9 | P67: 24 | Q67: 24.1 | R67: 999.9 | S67: 29.7* | T67: 21.7* | U67: 0.08G | V67: 1.2 | W67: 1000
B68: 66800 | C68: 99999 | D68: 20181028 | E68: 30.5 | F68: 24 | G68: 29 | H68: 24 | I68: 9999.9 | J68: 0 | K68: 737 | L68: 24 | M68: 999.9 | N68: 0 | O68: 14.1 | P68: 24 | Q68: 21 | R68: 24.7 | S68: 34.3 | T68: 21.6 | U68: 0.43G | V68: 999.9 | W68: 100000
B69: 66800 | C69: 99999 | D69: 20181029 | E69: 31.8 | F69: 24 | G69: 29.2 | H69: 24 | I69: 9999.9 | J69: 0 | K69: 733.6 | L69: 24 | M69: 999.9 | N69: 0 | O69: 17.6 | P69: 24 | Q69: 27 | R69: 999.9 | S69: 37.8 | T69: 26.8* | U69: 0.01G | V69: 999.9 | W69: 0
B70: 66800 | C70: 99999 | D70: 20181030 | E70: 24.5 | F70: 24 | G70: 20.4 | H70: 24 | I70: 9999.9 | J70: 0 | K70: 735.3 | L70: 24 | M70: 999.9 | N70: 0 | O70: 19.6 | P70: 24 | Q70: 49.9 | R70: 999.9 | S70: 28.8* | T70: 23.4* | U70: 0.37G | V70: 999.9 | W70: 0
B71: 66800 | C71: 99999 | D71: 20181031 | E71: 29.5 | F71: 24 | G71: 20.3 | H71: 24 | I71: 9999.9 | J71: 0 | K71: 748.6 | L71: 24 | M71: 999.9 | N71: 0 | O71: 16.1 | P71: 24 | Q71: 31.1 | R71: 999.9 | S71: 32.7* | T71: 23.4 | U71: 0.00G | V71: 999.9 | W71: 0
B72: 66800 | C72: 99999 | D72: 20181101 | E72: 31.3 | F72: 24 | G72: 24.5 | H72: 24 | I72: 9999.9 | J72: 0 | K72: 748.7 | L72: 24 | M72: 999.9 | N72: 0 | O72: 13.6 | P72: 24 | Q72: 19 | R72: 999.9 | S72: 34.2 | T72: 28.6* | U72: 0.00G | V72: 999.9 | W72: 0
B73: 66800 | C73: 99999 | D73: 20181102 | E73: 28.2 | F73: 24 | G73: 26 | H73: 24 | I73: 9999.9 | J73: 0 | K73: 753.4 | L73: 24 | M73: 999.9 | N73: 0 | O73: 9.2 | P73: 24 | Q73: 15.9 | R73: 999.9 | S73: 30.9* | T73: 25.9* | U73: 0.00G | V73: 999.9 | W73: 0
B74: 66800 | C74: 99999 | D74: 20181103 | E74: 35.2 | F74: 24 | G74: 29.2 | H74: 24 | I74: 9999.9 | J74: 0 | K74: 755.9 | L74: 24 | M74: 999.9 | N74: 0 | O74: 12.7 | P74: 24 | Q74: 19 | R74: 999.9 | S74: 39.6 | T74: 26.6 | U74: 0.00G | V74: 999.9 | W74: 0
B75: 66800 | C75: 99999 | D75: 20181104 | E75: 38.9 | F75: 24 | G75: 27.7 | H75: 24 | I75: 9999.9 | J75: 0 | K75: 752.6 | L75: 24 | M75: 999.9 | N75: 0 | O75: 13.7 | P75: 24 | Q75: 19 | R75: 999.9 | S75: 42.6 | T75: 35.8 | U75: 0.00G | V75: 999.9 | W75: 0
B76: 66800 | C76: 99999 | D76: 20181105 | E76: 37.1 | F76: 24 | G76: 27.1 | H76: 24 | I76: 9999.9 | J76: 0 | K76: 748.3 | L76: 24 | M76: 999.9 | N76: 0 | O76: 19 | P76: 24 | Q76: 31.1 | R76: 999.9 | S76: 40.8 | T76: 35.4 | U76: 0.00G | V76: 999.9 | W76: 0
B77: 66800 | C77: 99999 | D77: 20181106 | E77: 36.1 | F77: 24 | G77: 26.1 | H77: 24 | I77: 9999.9 | J77: 0 | K77: 747.8 | L77: 24 | M77: 999.9 | N77: 0 | O77: 17.6 | P77: 24 | Q77: 28.9 | R77: 999.9 | S77: 40.5 | T77: 32.5* | U77: 0.00G | V77: 999.9 | W77: 0
B78: 66800 | C78: 99999 | D78: 20181107 | E78: 34.3 | F78: 24 | G78: 27.2 | H78: 24 | I78: 9999.9 | J78: 0 | K78: 749.1 | L78: 24 | M78: 999.9 | N78: 0 | O78: 13.5 | P78: 24 | Q78: 20 | R78: 999.9 | S78: 38.3 | T78: 32.4 | U78: 0.00G | V78: 999.9 | W78: 0
B79: 66800 | C79: 99999 | D79: 20181108 | E79: 31.8 | F79: 24 | G79: 27.9 | H79: 24 | I79: 9999.9 | J79: 0 | K79: 752.7 | L79: 24 | M79: 999.9 | N79: 0 | O79: 10.5 | P79: 24 | Q79: 15.9 | R79: 999.9 | S79: 35.2 | T79: 28.2 | U79: 0.00G | V79: 999.9 | W79: 0
B80: 66800 | C80: 99999 | D80: 20181109 | E80: 33.4 | F80: 24 | G80: 24.9 | H80: 24 | I80: 9999.9 | J80: 0 | K80: 750.9 | L80: 24 | M80: 999.9 | N80: 0 | O80: 11.7 | P80: 24 | Q80: 15.9 | R80: 999.9 | S80: 35.6 | T80: 31.8 | U80: 0.00G | V80: 999.9 | W80: 0
B81: 66800 | C81: 99999 | D81: 20181110 | E81: 34.8 | F81: 24 | G81: 24.5 | H81: 24 | I81: 9999.9 | J81: 0 | K81: 747.9 | L81: 24 | M81: 999.9 | N81: 0 | O81: 12.5 | P81: 24 | Q81: 18.1 | R81: 999.9 | S81: 38.3 | T81: 32.5 | U81: 0.00G | V81: 999.9 | W81: 0
B82: 66800 | C82: 99999 | D82: 20181111 | E82: 34.7 | F82: 24 | G82: 26.9 | H82: 24 | I82: 9999.9 | J82: 0 | K82: 750.7 | L82: 24 | M82: 999.9 | N82: 0 | O82: 12 | P82: 24 | Q82: 18.1 | R82: 999.9 | S82: 37.8 | T82: 31.6 | U82: 0.00G | V82: 999.9 | W82: 0
B83: 66800 | C83: 99999 | D83: 20181112 | E83: 39.3 | F83: 24 | G83: 27 | H83: 24 | I83: 9999.9 | J83: 0 | K83: 756 | L83: 24 | M83: 999.9 | N83: 0 | O83: 10.6 | P83: 24 | Q83: 17.1 | R83: 999.9 | S83: 46.6 | T83: 34.5 | U83: 0.00G | V83: 999.9 | W83: 0
B84: 66800 | C84: 99999 | D84: 20181113 | E84: 33.3 | F84: 24 | G84: 29.3 | H84: 24 | I84: 9999.9 | J84: 0 | K84: 759.9 | L84: 24 | M84: 999.9 | N84: 0 | O84: 11.4 | P84: 24 | Q84: 18.1 | R84: 999.9 | S84: 40.1* | T84: 29.1* | U84: 0.00G | V84: 999.9 | W84: 110000
B85: 66800 | C85: 99999 | D85: 20181114 | E85: 36.2 | F85: 24 | G85: 8.8 | H85: 23 | I85: 9999.9 | J85: 0 | K85: 760.4 | L85: 24 | M85: 999.9 | N85: 0 | O85: 12.1 | P85: 24 | Q85: 19 | R85: 999.9 | S85: 41.5* | T85: 30.2 | U85: 0.06G | V85: 999.9 | W85: 0
B86: 66800 | C86: 99999 | D86: 20181115 | E86: 40.6 | F86: 24 | G86: -13.3 | H86: 23 | I86: 9999.9 | J86: 0 | K86: 758.1 | L86: 24 | M86: 999.9 | N86: 0 | O86: 5.6 | P86: 24 | Q86: 14 | R86: 999.9 | S86: 43.9 | T86: 35.8 | U86: 0.00G | V86: 999.9 | W86: 0
B87: 66800 | C87: 99999 | D87: 20181116 | E87: 36.8 | F87: 17 | G87: -7.9 | H87: 16 | I87: 9999.9 | J87: 0 | K87: 756.7 | L87: 17 | M87: 999.9 | N87: 0 | O87: 15.5 | P87: 17 | Q87: 20 | R87: 999.9 | S87: 38.7* | T87: 32.7* | U87: 0.00G | V87: 999.9 | W87: 0
B88: 66800 | C88: 99999 | D88: 20181123 | E88: 27.1 | F88: 24 | G88: 13.4 | H88: 24 | I88: 9999.9 | J88: 0 | K88: 748.7 | L88: 24 | M88: 999.9 | N88: 0 | O88: 10.1 | P88: 24 | Q88: 22 | R88: 999.9 | S88: 29.1 | T88: 24.3 | U88: 0.00G | V88: 999.9 | W88: 0
B89: 66800 | C89: 99999 | D89: 20181124 | E89: 24.8 | F89: 24 | G89: 19.3 | H89: 24 | I89: 9999.9 | J89: 0 | K89: 745.8 | L89: 24 | M89: 999.9 | N89: 0 | O89: 10.5 | P89: 24 | Q89: 18.1 | R89: 999.9 | S89: 30.4 | T89: 22.1* | U89: 0.01G | V89: 999.9 | W89: 10000
B90: 66800 | C90: 99999 | D90: 20181125 | E90: 25.2 | F90: 24 | G90: 9.6 | H90: 24 | I90: 9999.9 | J90: 0 | K90: 740.7 | L90: 24 | M90: 999.9 | N90: 0 | O90: 4.3 | P90: 24 | Q90: 9.9 | R90: 999.9 | S90: 30 | T90: 21 | U90: 0.06G | V90: 999.9 | W90: 0
B91: 66800 | C91: 99999 | D91: 20181126 | E91: 18.5 | F91: 24 | G91: 13.7 | H91: 24 | I91: 9999.9 | J91: 0 | K91: 737.2 | L91: 24 | M91: 999.9 | N91: 0 | O91: 4.4 | P91: 24 | Q91: 9.9 | R91: 999.9 | S91: 22.5* | T91: 15.3* | U91: 0.00G | V91: 999.9 | W91: 100000
B92: 66800 | C92: 99999 | D92: 20181127 | E92: 14.5 | F92: 24 | G92: 13.6 | H92: 24 | I92: 9999.9 | J92: 0 | K92: 744.8 | L92: 24 | M92: 999.9 | N92: 0 | O92: 5.6 | P92: 24 | Q92: 12 | R92: 999.9 | S92: 15.6* | T92: 13.3* | U92: 0.25G | V92: 999.9 | W92: 101000
B93: 66800 | C93: 99999 | D93: 20181128 | E93: 20.7 | F93: 24 | G93: 11.8 | H93: 24 | I93: 9999.9 | J93: 0 | K93: 751.1 | L93: 24 | M93: 999.9 | N93: 0 | O93: 14.7 | P93: 24 | Q93: 22.9 | R93: 999.9 | S93: 27.1* | T93: 12 | U93: 0.07G | V93: 999.9 | W93: 0
B94: 66800 | C94: 99999 | D94: 20181129 | E94: 33.7 | F94: 24 | G94: 24.1 | H94: 24 | I94: 9999.9 | J94: 0 | K94: 752.7 | L94: 24 | M94: 999.9 | N94: 0 | O94: 7.1 | P94: 24 | Q94: 17.1 | R94: 999.9 | S94: 38.3 | T94: 23.2 | U94: 0.00G | V94: 999.9 | W94: 0
B95: 66800 | C95: 99999 | D95: 20181130 | E95: 23.6 | F95: 24 | G95: 18.5 | H95: 24 | I95: 9999.9 | J95: 0 | K95: 747.9 | L95: 24 | M95: 999.9 | N95: 0 | O95: 10.4 | P95: 24 | Q95: 19 | R95: 999.9 | S95: 29.3* | T95: 21.0* | U95: 0.00G | V95: 999.9 | W95: 1000
B96: 66800 | C96: 99999 | D96: 20181201 | E96: 22 | F96: 24 | G96: 8.8 | H96: 24 | I96: 9999.9 | J96: 0 | K96: 748.1 | L96: 24 | M96: 999.9 | N96: 0 | O96: 16 | P96: 24 | Q96: 32.1 | R96: 999.9 | S96: 27.3* | T96: 18.0* | U96: 0.53G | V96: 999.9 | W96: 0
B97: 66800 | C97: 99999 | D97: 20181202 | E97: 30.1 | F97: 24 | G97: 24.7 | H97: 24 | I97: 9999.9 | J97: 0 | K97: 746.1 | L97: 24 | M97: 999.9 | N97: 0 | O97: 28.2 | P97: 24 | Q97: 42 | R97: 999.9 | S97: 31.5* | T97: 24.3 | U97: 0.01G | V97: 999.9 | W97: 0
B98: 66800 | C98: 99999 | D98: 20181203 | E98: 30.1 | F98: 24 | G98: 30.1 | H98: 24 | I98: 9999.9 | J98: 0 | K98: 745.7 | L98: 24 | M98: 999.9 | N98: 0 | O98: 29 | P98: 24 | Q98: 44.1 | R98: 999.9 | S98: 31.5 | T98: 26.1* | U98: 2.02G | V98: 999.9 | W98: 100000
B99: 66800 | C99: 99999 | D99: 20181204 | E99: 24.1 | F99: 24 | G99: 24.1 | H99: 24 | I99: 9999.9 | J99: 0 | K99: 750.5 | L99: 24 | M99: 999.9 | N99: 0 | O99: 12.4 | P99: 24 | Q99: 31.1 | R99: 999.9 | S99: 26.6* | T99: 23.0* | U99: 2.08G | V99: 999.9 | W99: 100000
B100: 66800 | C100: 99999 | D100: 20181205 | E100: 27.4 | F100: 24 | G100: 19.5 | H100: 24 | I100: 9999.9 | J100: 0 | K100: 754.6 | L100: 24 | M100: 999.9 | N100: 0 | O100: 15.3 | P100: 24 | Q100: 26 | R100: 999.9 | S100: 33.8* | T100: 21.7 | U100: 1.37G | V100: 999.9 | W100: 0
B101: 66800 | C101: 99999 | D101: 20181206 | E101: 27.2 | F101: 24 | G101: 26.6 | H101: 24 | I101: 9999.9 | J101: 0 | K101: 753.2 | L101: 24 | M101: 999.9 | N101: 0 | O101: 24.1 | P101: 24 | Q101: 35.9 | R101: 999.9 | S101: 28.9* | T101: 25.7 | U101: 0.42G | V101: 999.9 | W101: 100000
B102: 66800 | C102: 99999 | D102: 20181207 | E102: 30 | F102: 24 | G102: 24.3 | H102: 24 | I102: 9999.9 | J102: 0 | K102: 749.5 | L102: 24 | M102: 999.9 | N102: 0 | O102: 25.7 | P102: 24 | Q102: 38.1 | R102: 999.9 | S102: 36.9 | T102: 23.2* | U102: 0.13G | V102: 999.9 | W102: 0
B103: 66800 | C103: 99999 | D103: 20181208 | E103: 18.5 | F103: 24 | G103: 18.5 | H103: 24 | I103: 9999.9 | J103: 0 | K103: 744.4 | L103: 24 | M103: 999.9 | N103: 0 | O103: 34.9 | P103: 24 | Q103: 46 | R103: 999.9 | S103: 26.2* | T103: 14.9 | U103: 1.45G | V103: 999.9 | W103: 0
B104: 66800 | C104: 99999 | D104: 20181209 | E104: 22.4 | F104: 24 | G104: 22.4 | H104: 24 | I104: 9999.9 | J104: 0 | K104: 740.2 | L104: 24 | M104: 999.9 | N104: 0 | O104: 27.9 | P104: 24 | Q104: 47 | R104: 999.9 | S104: 28.0* | T104: 19.6 | U104: 1.48G | V104: 999.9 | W104: 0
B105: 66800 | C105: 99999 | D105: 20181210 | E105: 15.3 | F105: 24 | G105: 14.9 | H105: 24 | I105: 9999.9 | J105: 0 | K105: 748.1 | L105: 24 | M105: 999.9 | N105: 0 | O105: 15.7 | P105: 24 | Q105: 22.9 | R105: 999.9 | S105: 22.5 | T105: 12.4* | U105: 3.22G | V105: 999.9 | W105: 101000
B106: 66800 | C106: 99999 | D106: 20181211 | E106: 8.4 | F106: 24 | G106: 6.8 | H106: 24 | I106: 9999.9 | J106: 0 | K106: 747.6 | L106: 24 | M106: 999.9 | N106: 0 | O106: 8.8 | P106: 24 | Q106: 15 | R106: 999.9 | S106: 11.5* | T106: 5.5* | U106: 0.79G | V106: 999.9 | W106: 100000
B107: 66800 | C107: 99999 | D107: 20181212 | E107: 10.2 | F107: 24 | G107: -6.2 | H107: 24 | I107: 9999.9 | J107: 0 | K107: 745.2 | L107: 24 | M107: 999.9 | N107: 0 | O107: 6.1 | P107: 24 | Q107: 18.1 | R107: 999.9 | S107: 14.5 | T107: 5.2 | U107: 0.07G | V107: 999.9 | W107: 0
B108: 66800 | C108: 99999 | D108: 20181213 | E108: 9.9 | F108: 24 | G108: -5.6 | H108: 24 | I108: 9999.9 | J108: 0 | K108: 739.7 | L108: 24 | M108: 999.9 | N108: 0 | O108: 9.7 | P108: 24 | Q108: 15 | R108: 999.9 | S108: 12.4* | T108: 8.4 | U108: 0.17G | V108: 999.9 | W108: 0
B109: 66800 | C109: 99999 | D109: 20181214 | E109: 10.9 | F109: 24 | G109: 4.7 | H109: 24 | I109: 9999.9 | J109: 0 | K109: 742.5 | L109: 24 | M109: 999.9 | N109: 0 | O109: 2.6 | P109: 24 | Q109: 6 | R109: 999.9 | S109: 13.5 | T109: 8.1* | U109: 0.00G | V109: 999.9 | W109: 0
B110: 66800 | C110: 99999 | D110: 20181215 | E110: 12.8 | F110: 24 | G110: -7.5 | H110: 24 | I110: 9999.9 | J110: 0 | K110: 745.8 | L110: 24 | M110: 999.9 | N110: 0 | O110: 8.8 | P110: 24 | Q110: 25.1 | R110: 999.9 | S110: 16.5 | T110: 7 | U110: 0.00G | V110: 999.9 | W110: 0
B111: 66800 | C111: 99999 | D111: 20181216 | E111: 20.6 | F111: 24 | G111: 16.3 | H111: 24 | I111: 9999.9 | J111: 0 | K111: 743.6 | L111: 24 | M111: 999.9 | N111: 0 | O111: 22.3 | P111: 24 | Q111: 38.1 | R111: 999.9 | S111: 26.1 | T111: 14.2 | U111: 0.56G | V111: 999.9 | W111: 100000
B112: 66800 | C112: 99999 | D112: 20181217 | E112: 16.8 | F112: 24 | G112: 15.7 | H112: 24 | I112: 9999.9 | J112: 0 | K112: 749.7 | L112: 24 | M112: 999.9 | N112: 0 | O112: 15.4 | P112: 24 | Q112: 24.1 | R112: 999.9 | S112: 19.0* | T112: 13.6* | U112: 0.61G | V112: 999.9 | W112: 100000
B113: 66800 | C113: 99999 | D113: 20181218 | E113: 23.6 | F113: 24 | G113: -1.4 | H113: 24 | I113: 9999.9 | J113: 0 | K113: 752.6 | L113: 24 | M113: 999.9 | N113: 0 | O113: 15.5 | P113: 24 | Q113: 21 | R113: 999.9 | S113: 32.0* | T113: 13.3 | U113: 0.39G | V113: 999.9 | W113: 0
B114: 66800 | C114: 99999 | D114: 20181219 | E114: 23.5 | F114: 24 | G114: 15.6 | H114: 24 | I114: 9999.9 | J114: 0 | K114: 748.3 | L114: 24 | M114: 999.9 | N114: 0 | O114: 14.5 | P114: 24 | Q114: 28.9 | R114: 999.9 | S114: 32.4* | T114: 19.6* | U114: 0.00G | V114: 999.9 | W114: 0
B115: 66800 | C115: 99999 | D115: 20181220 | E115: 18 | F115: 24 | G115: 16.9 | H115: 24 | I115: 9999.9 | J115: 0 | K115: 748.1 | L115: 24 | M115: 999.9 | N115: 0 | O115: 24 | P115: 24 | Q115: 35.9 | R115: 999.9 | S115: 19.8* | T115: 16.7* | U115: 0.16G | V115: 999.9 | W115: 100000
B116: 66800 | C116: 99999 | D116: 20181221 | E116: 26.3 | F116: 24 | G116: 23.2 | H116: 24 | I116: 9999.9 | J116: 0 | K116: 748.8 | L116: 24 | M116: 999.9 | N116: 0 | O116: 37.6 | P116: 24 | Q116: 55 | R116: 999.9 | S116: 35.8 | T116: 17.2 | U116: 0.12G | V116: 999.9 | W116: 0
B117: 66800 | C117: 99999 | D117: 20181222 | E117: 27.8 | F117: 24 | G117: 27.7 | H117: 24 | I117: 9999.9 | J117: 0 | K117: 750.8 | L117: 24 | M117: 999.9 | N117: 0 | O117: 35.2 | P117: 24 | Q117: 49 | R117: 999.9 | S117: 31.3* | T117: 24.6* | U117: 1.59G | V117: 999.9 | W117: 0
B118: 66800 | C118: 99999 | D118: 20181223 | E118: 27.1 | F118: 24 | G118: 26.6 | H118: 24 | I118: 9999.9 | J118: 0 | K118: 753.1 | L118: 24 | M118: 999.9 | N118: 0 | O118: 31.4 | P118: 24 | Q118: 47 | R118: 999.9 | S118: 31.1 | T118: 24.3* | U118: 4.57G | V118: 999.9 | W118: 101000
B119: 66800 | C119: 99999 | D119: 20181224 | E119: 20 | F119: 24 | G119: 16.5 | H119: 24 | I119: 9999.9 | J119: 0 | K119: 753.2 | L119: 24 | M119: 999.9 | N119: 0 | O119: 18.2 | P119: 24 | Q119: 38.1 | R119: 999.9 | S119: 30.2* | T119: 12.4* | U119: 0.00I | V119: 999.9 | W119: 0
B120: 66800 | C120: 99999 | D120: 20181225 | E120: 19.1 | F120: 24 | G120: -18.6 | H120: 24 | I120: 9999.9 | J120: 0 | K120: 758.5 | L120: 24 | M120: 999.9 | N120: 0 | O120: 18 | P120: 24 | Q120: 22.9 | R120: 999.9 | S120: 25.7* | T120: 12.2 | U120: 0.33G | V120: 999.9 | W120: 0
B121: 66800 | C121: 99999 | D121: 20181226 | E121: 28.6 | F121: 24 | G121: -5.8 | H121: 23 | I121: 9999.9 | J121: 0 | K121: 759 | L121: 24 | M121: 999.9 | N121: 0 | O121: 9.9 | P121: 24 | Q121: 15.9 | R121: 999.9 | S121: 31.6 | T121: 20.8 | U121: 0.06G | V121: 999.9 | W121: 0
B122: 66800 | C122: 99999 | D122: 20181227 | E122: 33.4 | F122: 24 | G122: 12.4 | H122: 24 | I122: 9999.9 | J122: 0 | K122: 757.6 | L122: 24 | M122: 999.9 | N122: 0 | O122: 8.5 | P122: 24 | Q122: 15 | R122: 999.9 | S122: 36.1 | T122: 27 | U122: 0.00G | V122: 999.9 | W122: 0
B123: 66800 | C123: 99999 | D123: 20181228 | E123: 30.2 | F123: 24 | G123: 3.8 | H123: 20 | I123: 9999.9 | J123: 0 | K123: 757.1 | L123: 24 | M123: 999.9 | N123: 0 | O123: 11 | P123: 24 | Q123: 18.1 | R123: 999.9 | S123: 32.5* | T123: 28.6 | U123: 0.00G | V123: 999.9 | W123: 0
B124: 66800 | C124: 99999 | D124: 20181229 | E124: 25.4 | F124: 24 | G124: 11.1 | H124: 22 | I124: 9999.9 | J124: 0 | K124: 758.5 | L124: 24 | M124: 999.9 | N124: 0 | O124: 14 | P124: 24 | Q124: 28 | R124: 999.9 | S124: 29.5 | T124: 20.7* | U124: 0.00G | V124: 999.9 | W124: 0
B125: 66800 | C125: 99999 | D125: 20181230 | E125: 17.4 | F125: 24 | G125: 14.9 | H125: 24 | I125: 9999.9 | J125: 0 | K125: 758.2 | L125: 24 | M125: 999.9 | N125: 0 | O125: 15.1 | P125: 24 | Q125: 32.1 | R125: 999.9 | S125: 19.9* | T125: 16.0* | U125: 0.44G | V125: 999.9 | W125: 100000
B126: 66800 | C126: 99999 | D126: 20181231 | E126: 23.6 | F126: 24 | G126: 17.1 | H126: 24 | I126: 9999.9 | J126: 0 | K126: 759.4 | L126: 24 | M126: 999.9 | N126: 0 | O126: 12.9 | P126: 24 | Q126: 24.1 | R126: 999.9 | S126: 29.1* | T126: 16.5 | U126: 0.22G | V126: 999.9 | W126: 110000
B127: 66800 | C127: 99999 | D127: 20190101 | E127: 25.8 | F127: 24 | G127: 7.7 | H127: 24 | I127: 9999.9 | J127: 0 | K127: 757.2 | L127: 24 | M127: 999.9 | N127: 0 | O127: 17.8 | P127: 24 | Q127: 28 | R127: 999.9 | S127: 30.2* | T127: 16.7* | U127: 0.01G | V127: 999.9 | W127: 0
B128: 66800 | C128: 99999 | D128: 20190102 | E128: 8.1 | F128: 24 | G128: 7.7 | H128: 24 | I128: 9999.9 | J128: 0 | K128: 752.8 | L128: 24 | M128: 999.9 | N128: 0 | O128: 8.6 | P128: 24 | Q128: 18.1 | R128: 999.9 | S128: 15.6* | T128: 2.5* | U128: 0.67G | V128: 999.9 | W128: 1000
B129: 66800 | C129: 99999 | D129: 20190103 | E129: 1.9 | F129: 24 | G129: -3.7 | H129: 24 | I129: 9999.9 | J129: 0 | K129: 754.4 | L129: 24 | M129: 999.9 | N129: 0 | O129: 12 | P129: 24 | Q129: 18.1 | R129: 999.9 | S129: 5.2* | T129: -0.9 | U129: 0.48G | V129: 999.9 | W129: 0
B130: 66800 | C130: 99999 | D130: 20190104 | E130: 7.4 | F130: 24 | G130: 4.6 | H130: 24 | I130: 9999.9 | J130: 0 | K130: 755 | L130: 24 | M130: 999.9 | N130: 0 | O130: 15.1 | P130: 24 | Q130: 26 | R130: 999.9 | S130: 14.4 | T130: 1.4 | U130: 0.06G | V130: 999.9 | W130: 0
B131: 66800 | C131: 99999 | D131: 20190105 | E131: 13.9 | F131: 24 | G131: 12.6 | H131: 24 | I131: 9999.9 | J131: 0 | K131: 753.9 | L131: 24 | M131: 999.9 | N131: 0 | O131: 19.2 | P131: 24 | Q131: 26 | R131: 999.9 | S131: 17.8 | T131: 8.2 | U131: 0.00G | V131: 999.9 | W131: 1000
B132: 66800 | C132: 99999 | D132: 20190106 | E132: 13.6 | F132: 24 | G132: 13 | H132: 24 | I132: 9999.9 | J132: 0 | K132: 754.6 | L132: 24 | M132: 999.9 | N132: 0 | O132: 11.5 | P132: 24 | Q132: 17.1 | R132: 999.9 | S132: 14.5 | T132: 12.7 | U132: 3.07G | V132: 999.9 | W132: 1000
B133: 66800 | C133: 99999 | D133: 20190107 | E133: 15.4 | F133: 24 | G133: 11.3 | H133: 24 | I133: 9999.9 | J133: 0 | K133: 755.2 | L133: 24 | M133: 999.9 | N133: 0 | O133: 11.9 | P133: 24 | Q133: 24.1 | R133: 999.9 | S133: 19.9* | T133: 12.7 | U133: 0.46G | V133: 999.9 | W133: 0
B134: 66800 | C134: 99999 | D134: 20190108 | E134: 16.4 | F134: 24 | G134: 16.4 | H134: 24 | I134: 9999.9 | J134: 0 | K134: 746.8 | L134: 24 | M134: 999.9 | N134: 0 | O134: 20.5 | P134: 24 | Q134: 40 | R134: 999.9 | S134: 21.9 | T134: 12.4* | U134: 0.60G | V134: 999.9 | W134: 101000
B135: 66800 | C135: 99999 | D135: 20190109 | E135: 7.8 | F135: 24 | G135: 7.8 | H135: 24 | I135: 9999.9 | J135: 0 | K135: 739.7 | L135: 24 | M135: 999.9 | N135: 0 | O135: 9 | P135: 24 | Q135: 14 | R135: 999.9 | S135: 12.0* | T135: 4.3* | U135: 3.48G | V135: 999.9 | W135: 1000
B136: 66800 | C136: 99999 | D136: 20190110 | E136: 5.9 | F136: 24 | G136: 5.4 | H136: 24 | I136: 9999.9 | J136: 0 | K136: 743.7 | L136: 24 | M136: 999.9 | N136: 0 | O136: 8.2 | P136: 24 | Q136: 14 | R136: 999.9 | S136: 8.2 | T136: 3 | U136: 1.24G | V136: 999.9 | W136: 1000
B137: 66800 | C137: 99999 | D137: 20190111 | E137: 7.3 | F137: 24 | G137: 2.9 | H137: 24 | I137: 9999.9 | J137: 0 | K137: 747.2 | L137: 24 | M137: 999.9 | N137: 0 | O137: 10.2 | P137: 24 | Q137: 17.1 | R137: 999.9 | S137: 14.0* | T137: 1.2 | U137: 0.09G | V137: 999.9 | W137: 0
B138: 66800 | C138: 99999 | D138: 20190112 | E138: 14.7 | F138: 24 | G138: 13.7 | H138: 24 | I138: 9999.9 | J138: 0 | K138: 748.8 | L138: 24 | M138: 999.9 | N138: 0 | O138: 25.2 | P138: 24 | Q138: 48 | R138: 999.9 | S138: 17.4 | T138: 11.1 | U138: 0.08G | V138: 999.9 | W138: 100000
B139: 66800 | C139: 99999 | D139: 20190113 | E139: 18.4 | F139: 24 | G139: 17.6 | H139: 24 | I139: 9999.9 | J139: 0 | K139: 741.1 | L139: 24 | M139: 999.9 | N139: 0 | O139: 33.4 | P139: 24 | Q139: 48 | R139: 999.9 | S139: 24.1 | T139: 12.9 | U139: 2.34G | V139: 999.9 | W139: 0
B140: 66800 | C140: 99999 | D140: 20190114 | E140: 14.8 | F140: 24 | G140: 12.7 | H140: 24 | I140: 9999.9 | J140: 0 | K140: 741 | L140: 24 | M140: 999.9 | N140: 0 | O140: 13.6 | P140: 24 | Q140: 22.9 | R140: 999.9 | S140: 19.4* | T140: 11.3* | U140: 0.00I | V140: 999.9 | W140: 0
B141: 66800 | C141: 99999 | D141: 20190115 | E141: 11.6 | F141: 24 | G141: 9.1 | H141: 24 | I141: 9999.9 | J141: 0 | K141: 748 | L141: 24 | M141: 999.9 | N141: 0 | O141: 18.4 | P141: 24 | Q141: 28.9 | R141: 999.9 | S141: 17.6* | T141: 7.5 | U141: 1.44G | V141: 999.9 | W141: 0
B142: 66800 | C142: 99999 | D142: 20190116 | E142: 25.3 | F142: 24 | G142: 8.3 | H142: 24 | I142: 9999.9 | J142: 0 | K142: 746.9 | L142: 24 | M142: 999.9 | N142: 0 | O142: 21.2 | P142: 24 | Q142: 27 | R142: 999.9 | S142: 29.1 | T142: 12.2 | U142: 0.01G | V142: 999.9 | W142: 0
B143: 66800 | C143: 99999 | D143: 20190117 | E143: 17.8 | F143: 24 | G143: 13.5 | H143: 24 | I143: 9999.9 | J143: 0 | K143: 741.1 | L143: 24 | M143: 999.9 | N143: 0 | O143: 20.2 | P143: 24 | Q143: 35.9 | R143: 999.9 | S143: 24.6* | T143: 10.4* | U143: 0.01G | V143: 999.9 | W143: 0
B144: 66800 | C144: 99999 | D144: 20190118 | E144: 7.1 | F144: 24 | G144: -2.6 | H144: 24 | I144: 9999.9 | J144: 0 | K144: 741.8 | L144: 24 | M144: 999.9 | N144: 0 | O144: 10.9 | P144: 24 | Q144: 27 | R144: 999.9 | S144: 11.7* | T144: 4.1* | U144: 1.03G | V144: 999.9 | W144: 0
B145: 66800 | C145: 99999 | D145: 20190119 | E145: 11.2 | F145: 24 | G145: 0.1 | H145: 24 | I145: 9999.9 | J145: 0 | K145: 740.8 | L145: 24 | M145: 999.9 | N145: 0 | O145: 12 | P145: 24 | Q145: 19 | R145: 999.9 | S145: 13.3 | T145: 6.8 | U145: 0.00G | V145: 999.9 | W145: 0
B146: 66800 | C146: 99999 | D146: 20190120 | E146: 12.3 | F146: 24 | G146: 9.6 | H146: 24 | I146: 9999.9 | J146: 0 | K146: 741.3 | L146: 24 | M146: 999.9 | N146: 0 | O146: 11.1 | P146: 24 | Q146: 22.9 | R146: 999.9 | S146: 14 | T146: 10.6 | U146: 0.00G | V146: 999.9 | W146: 0
B147: 66800 | C147: 99999 | D147: 20190121 | E147: 9.7 | F147: 24 | G147: 8 | H147: 24 | I147: 9999.9 | J147: 0 | K147: 743.5 | L147: 24 | M147: 999.9 | N147: 0 | O147: 2.7 | P147: 24 | Q147: 9.9 | R147: 999.9 | S147: 12.6 | T147: 8.1* | U147: 0.01G | V147: 999.9 | W147: 100000
B148: 66800 | C148: 99999 | D148: 20190122 | E148: 13.1 | F148: 22 | G148: -12.9 | H148: 22 | I148: 9999.9 | J148: 0 | K148: 737.1 | L148: 22 | M148: 999.9 | N148: 0 | O148: 2.7 | P148: 22 | Q148: 15 | R148: 999.9 | S148: 15.6 | T148: 7.7 | U148: 0.00G | V148: 999.9 | W148: 0
B149: 66800 | C149: 99999 | D149: 20190124 | E149: 4.7 | F149: 24 | G149: -3.6 | H149: 24 | I149: 9999.9 | J149: 0 | K149: 732.6 | L149: 24 | M149: 999.9 | N149: 0 | O149: 10 | P149: 24 | Q149: 22 | R149: 999.9 | S149: 8.1 | T149: 1.4* | U149: 0.00G | V149: 999.9 | W149: 100000
B150: 66800 | C150: 99999 | D150: 20190125 | E150: 3.2 | F150: 24 | G150: -15.8 | H150: 24 | I150: 9999.9 | J150: 0 | K150: 739.3 | L150: 24 | M150: 999.9 | N150: 0 | O150: 16.2 | P150: 24 | Q150: 26 | R150: 999.9 | S150: 8.4* | T150: -2.0* | U150: 0.00G | V150: 999.9 | W150: 0
B151: 66800 | C151: 99999 | D151: 20190126 | E151: 18.3 | F151: 24 | G151: 14.9 | H151: 24 | I151: 9999.9 | J151: 0 | K151: 742.2 | L151: 24 | M151: 999.9 | N151: 0 | O151: 24.1 | P151: 24 | Q151: 36.9 | R151: 999.9 | S151: 23.5* | T151: 4.6 | U151: 0.20G | V151: 999.9 | W151: 0
B152: 66800 | C152: 99999 | D152: 20190127 | E152: 19.4 | F152: 24 | G152: 11.8 | H152: 24 | I152: 9999.9 | J152: 0 | K152: 730.8 | L152: 24 | M152: 999.9 | N152: 0 | O152: 18.6 | P152: 24 | Q152: 35 | R152: 999.9 | S152: 26.8* | T152: 10.8* | U152: 0.55G | V152: 999.9 | W152: 0
B153: 66800 | C153: 99999 | D153: 20190128 | E153: 8.1 | F153: 22 | G153: 8.1 | H153: 22 | I153: 9999.9 | J153: 0 | K153: 729.7 | L153: 22 | M153: 999.9 | N153: 0 | O153: 25.3 | P153: 22 | Q153: 32.1 | R153: 999.9 | S153: 10.4* | T153: 6.6* | U153: 1.68G | V153: 999.9 | W153: 0
